Workbook

Sheet 1. 매수매도 총잔량
A3: 2024-04-08
A4: 시간 | B4: 매도총잔량 | C4: 매도건수 | D4: 매수총잔량 | E4: 매수건수 | F4: 순매수총잔량 | G4: 선물지수 | H4: 순매수건수 | I4: 평균계약수
A5: 45390.65694 | B5: 6388 | C5: 1163 | D5: 6021 | E5: 1059 | F5: -367 | G5: 375.2 | H5: -104 | I5: 3.528846154
B6: 건수당 계약수 | C6: 5.492691316 | D6: 건수당 계약수 | E6: 5.685552408 | F6: 건수당 계약수 | H6: 0.1928610924
A8: 시간 | B8: 매도총잔량 | C8: 매도건수 | D8: 매수총잔량 | E8: 매수건수 | F8: 순매수총잔량 | G8: 선물지수 | H8: 순매수건수 | I8: 평균계약수
A9: 08:40:00 | B9: 11901 | C9: 1355 | D9: 12028 | E9: 1397 | F9: 127 | G9: 373.75 | H9: =(D9/E9)-(B9/C9) -> -0.1731475196 | I9: =(D9-B9)/(E9-C9) -> 3.023809524
A10: 08:41:00 | B10: 10383 | C10: 1310 | D10: 10516 | E10: 1354 | F10: 133 | G10: 373.75 | H10: =(D10/E10)-(B10/C10) -> -0.1593367686 | I10: =(D10-B10)/(E10-C10) -> 3.022727273
A11: 08:42:00 | B11: 10442 | C11: 1345 | D11: 10558 | E11: 1387 | F11: 116 | G11: 373.75 | H11: -0.1514563003 | I11: 2.761904762
A12: 08:43:00 | B12: 10492 | C12: 1379 | D12: 10398 | E12: 1390 | F12: -94 | G12: 373.75 | H12: -0.1278363531 | I12: -8.545454545
A13: 08:44:00 | B13: 10190 | C13: 1345 | D13: 8739 | E13: 1255 | F13: -1451 | G13: 373.75 | H13: -0.6128615649 | I13: 16.12222222
A14: 08:45:00 | B14: 10906 | C14: 1498 | D14: 9973 | E14: 1538 | F14: -933 | G14: 373.75 | H14: -0.7959785132 | I14: -23.325
A15: 08:46:00 | B15: 10361 | C15: 1455 | D15: 10246 | E15: 1590 | F15: -115 | G15: 376.55 | H15: -0.6769370421 | I15: -0.8518518519
A16: 08:47:00 | B16: 10799 | C16: 1771 | D16: 10406 | E16: 1663 | F16: -393 | G16: 376.2 | H16: 0.1596812819 | I16: 3.638888889
A17: 08:48:00 | B17: 11197 | C17: 1917 | D17: 9964 | E17: 1534 | F17: -1233 | G17: 375.7 | H17: 0.6545395314 | I17: 3.219321149
A18: 08:49:00 | B18: 11947 | C18: 2035 | D18: 9893 | E18: 1577 | F18: -2054 | G18: 375.5 | H18: 0.4025420705 | I18: 4.484716157
A19: 08:50:00 | B19: 12076 | C19: 2094 | D19: 9886 | E19: 1634 | F19: -2190 | G19: 375.35 | H19: 0.2832303989 | I19: 4.760869565
A20: 08:51:00 | B20: 12353 | C20: 2234 | D20: 9563 | E20: 1532 | F20: -2790 | G20: 375 | H20: 0.712623682 | I20: =(D20-B20)/(E20-C20) -> 3.974358974
A21: 08:52:00 | B21: 12064 | C21: 2212 | D21: 9431 | E21: 1580 | F21: -2633 | G21: 374.85 | H21: 0.5150994575 | I21: 4.166139241
A22: 08:53:00 | B22: 12071 | C22: 2210 | D22: 9554 | E22: 1666 | F22: -2517 | G22: 374.95 | H22: 0.2727029273 | I22: =(D22-B22)/(E22-C22) -> 4.626838235
A23: 08:54:00 | B23: 12162 | C23: 2262 | D23: 9682 | E23: 1704 | F23: -2480 | G23: 374.9 | H23: 0.3052670577 | I23: 4.444444444
A24: 08:55:00 | B24: 12363 | C24: 2347 | D24: 9492 | E24: 1632 | F24: -2871 | G24: 374.7 | H24: 0.5486008421 | I24: =(D24-B24)/(E24-C24) -> 4.015384615
A25: 08:56:00 | B25: 12429 | C25: 2305 | D25: 9637 | E25: 1708 | F25: -2792 | G25: 374.85 | H25: 0.2500807734 | I25: 4.676716918
A26: 08:57:00 | B26: 12515 | C26: 2352 | D26: 9471 | E26: 1641 | F26: -3044 | G26: 374.6 | H26: 0.450477403 | I26: 4.281293952
A27: 08:58:00 | B27: 12147 | C27: 2181 | D27: 9789 | E27: 1787 | F27: -2358 | G27: 375.05 | H27: -0.09156763389 | I27: 5.984771574
A28: 08:59:00 | B28: 12333 | C28: 2266 | D28: 9693 | E28: 1765 | F28: -2640 | G28: 375 | H28: 0.0491545172 | I28: 5.269461078
A29: 09:00:00 | B29: 12484 | C29: 2332 | D29: 9578 | E29: 1733 | F29: -2906 | G29: 374.8 | H29: 0.1734873147 | I29: 4.851419032
A30: 09:01:00 | B30: 13292 | C30: 2616 | D30: 8691 | E30: 1460 | F30: -4601 | G30: 374 | H30: 0.8716999707 | I30: 3.980103806
A31: 09:02:00 | B31: 13245 | C31: 2581 | D31: 8598 | E31: 1489 | F31: -4647 | G31: 373.85 | H31: 0.6426133113 | I31: 4.255494505
A32: 09:03:00 | B32: 13177 | C32: 2551 | D32: 9149 | E32: 1682 | F32: -4028 | G32: 374.2 | H32: 0.2739325839 | I32: 4.635212888
A33: 09:04:00 | B33: 13358 | C33: 2619 | D33: 9103 | E33: 1655 | F33: -4255 | G33: 374.2 | H33: 0.3998821072 | I33: 4.413900415
A34: 09:05:00 | B34: 13678 | C34: 2719 | D34: 8909 | E34: 1620 | F34: -4769 | G34: 373.95 | H34: 0.4688567874 | I34: 4.339399454
A35: 09:06:00 | B35: 13645 | C35: 2660 | D35: 9364 | E35: 1742 | F35: -4281 | G35: 374.05 | H35: 0.2457312915 | I35: 4.663398693
A36: 09:07:00 | B36: 13168 | C36: 2566 | D36: 9849 | E36: 1862 | F36: -3319 | G36: 374.45 | H36: 0.1577511589 | I36: 4.714488636
A37: 09:08:00 | B37: 13472 | C37: 2677 | D37: 9745 | E37: 1838 | F37: -3727 | G37: 374.15 | H37: 0.2694595846 | I37: 4.442193087
A38: 09:09:00 | B38: 13266 | C38: 2594 | D38: 9999 | E38: 1945 | F38: -3267 | G38: 374.35 | H38: =(D38/E38)-(B38/C38) -> 0.02676455257 | I38: 5.033898305
A39: 09:10:00 | B39: 13706 | C39: 2762 | D39: 9756 | E39: 1811 | F39: -3950 | G39: 374.05 | H39: =(D39/E39)-(B39/C39) -> 0.4247328359 | I39: 4.153522608
A40: 09:11:00 | B40: 13565 | C40: 2701 | D40: 10009 | E40: 1921 | F40: -3556 | G40: 374.25 | H40: 0.1880931369 | I40: 4.558974359
A41: 09:12:00 | B41: 13670 | C41: 2747 | D41: 9936 | E41: 1907 | F41: -3734 | G41: 374.25 | H41: 0.2339401004 | I41: 4.445238095
A42: 09:13:00 | B42: 13665 | C42: 2768 | D42: 10055 | E42: 1919 | F42: -3610 | G42: 374.2 | H42: 0.3029307247 | I42: 4.252061249
A43: 09:14:00 | B43: 13852 | C43: 2842 | D43: 9860 | E43: 1855 | F43: -3992 | G43: 374.05 | H43: 0.4413315098 | I43: 4.044579534
A44: 09:15:00 | B44: 13770 | C44: 2823 | D44: 9828 | E44: 1873 | F44: -3942 | G44: 374.1 | H44: 0.3694074246 | I44: 4.149473684
A45: 09:16:00 | B45: 13469 | C45: 2691 | D45: 10259 | E45: 2029 | F45: -3210 | G45: 374.35 | H45: 0.05098278602 | I45: 4.848942598
A46: 09:17:00 | B46: 13672 | C46: 2769 | D46: 10096 | E46: 1969 | F46: -3576 | G46: 374.25 | H46: 0.1899533048 | I46: 4.47
A47: 09:18:00 | B47: 13791 | C47: 2823 | D47: 10045 | E47: 1932 | F47: -3746 | G47: 374.15 | H47: 0.314046882 | I47: 4.204264871
A48: 09:19:00 | B48: 13526 | C48: 2708 | D48: 10357 | E48: 2050 | F48: -3169 | G48: 374.35 | H48: 0.05736498901 | I48: 4.816109422
A49: 09:20:00 | B49: 13610 | C49: 2737 | D49: 10362 | E49: 2066 | F49: -3248 | G49: 374.3 | H49: 0.04289113263 | I49: 4.840536513
A50: 09:21:00 | B50: 13766 | C50: 2808 | D50: 10216 | E50: 2013 | F50: -3550 | G50: 374.25 | H50: 0.1725907669 | I50: 4.465408805
A51: 09:22:00 | B51: 13691 | C51: 2761 | D51: 10380 | E51: 2083 | F51: -3311 | G51: 374.35 | H51: 0.02448669947 | I51: =(D51-B51)/(E51-C51) -> 4.883480826
A52: 09:23:00 | B52: 12818 | C52: 2467 | D52: 10995 | E52: 2234 | F52: -1823 | G52: 374.9 | H52: -0.2741191789 | I52: 7.824034335
A53: 09:24:00 | B53: 12840 | C53: 2464 | D53: 11025 | E53: 2259 | F53: -1815 | G53: 374.95 | H53: -0.3305608734 | I53: 8.853658537
A54: 09:25:00 | B54: 12637 | C54: 2421 | D54: 11279 | E54: 2276 | F54: -1358 | G54: 375.25 | H54: -0.2641200059 | I54: 9.365517241
A55: 09:26:00 | B55: 13399 | C55: 2727 | D55: 10573 | E55: 2056 | F55: -2826 | G55: 374.75 | H55: 0.2290517152 | I55: 4.211624441
A56: 09:27:00 | B56: 13481 | C56: 2748 | D56: 10589 | E56: 2075 | F56: -2892 | G56: 374.75 | H56: 0.197382894 | I56: 4.29717682
A57: 09:28:00 | B57: 13975 | C57: 2894 | D57: 10108 | E57: 1893 | F57: -3867 | G57: 374.3 | H57: 0.5107160159 | I57: 3.863136863
A58: 09:29:00 | B58: 13952 | C58: 2878 | D58: 10040 | E58: 1925 | F58: -3912 | G58: 374.25 | H58: 0.3677734357 | I58: 4.104931794
A59: 09:30:00 | B59: 14169 | C59: 2946 | D59: 9817 | E59: 1867 | F59: -4352 | G59: 374.05 | H59: 0.4485958828 | I59: 4.033364226
A60: 09:31:00 | B60: 14067 | C60: 2890 | D60: 10048 | E60: 1980 | F60: -4019 | G60: 374.2 | H60: 0.2072734263 | I60: 4.416483516
A61: 09:32:00 | B61: 14251 | C61: 2963 | D61: 9731 | E61: 1856 | F61: -4520 | G61: 374 | H61: 0.4333433103 | I61: 4.083107498
A62: 09:33:00 | B62: 13975 | C62: 2861 | D62: 9892 | E62: 1972 | F62: -4083 | G62: 374.2 | H62: 0.1315714657 | I62: 4.5928009
A63: 09:34:00 | B63: 13946 | C63: 2898 | D63: 9902 | E63: 1968 | F63: -4044 | G63: 374.15 | H63: 0.219219731 | I63: 4.348387097
A64: 09:35:00 | B64: 13592 | C64: 2759 | D64: 10326 | E64: 2093 | F64: -3266 | G64: 374.5 | H64: 0.007165534089 | I64: 4.903903904
A65: 09:36:00 | B65: 13332 | C65: 2663 | D65: 10569 | E65: 2188 | F65: -2763 | G65: 374.65 | H65: -0.1759450208 | I65: 5.816842105
A66: 09:37:00 | B66: 13084 | C66: 2581 | D66: 10884 | E66: 2230 | F66: -2200 | G66: 374.95 | H66: -0.1886354752 | I66: 6.267806268
A67: 09:38:00 | B67: 13025 | C67: 2576 | D67: 10960 | E67: 2264 | F67: -2065 | G67: 375 | H67: -0.2152994206 | I67: 6.618589744
A68: 09:39:00 | B68: 12640 | C68: 2432 | D68: 11262 | E68: 2365 | F68: -1378 | G68: 375.25 | H68: -0.4354233893 | I68: 20.56716418
A69: 09:40:00 | B69: 12912 | C69: 2569 | D69: 11082 | E69: 2262 | F69: -1830 | G69: 375.05 | H69: -0.1268759428 | I69: 5.960912052
A70: 09:41:00 | B70: 12603 | C70: 2462 | D70: 11301 | E70: 2365 | F70: -1302 | G70: 375.25 | H70: -0.3405734179 | I70: 13.42268041
A71: 09:42:00 | B71: 12883 | C71: 2585 | D71: 11179 | E71: 2330 | F71: -1704 | G71: 375.1 | H71: -0.1858983405 | I71: 6.682352941
A72: 09:43:00 | B72: 12355 | C72: 2343 | D72: 11494 | E72: 2428 | F72: -861 | G72: 375.4 | H72: -0.5392166789 | I72: -10.12941176
A73: 09:44:00 | B73: 12930 | C73: 2557 | D73: 10974 | E73: 2243 | F73: -1956 | G73: 375 | H73: =(D73/E73)-(B73/C73) -> -0.1641524643 | I73: =(D73-B73)/(E73-C73) -> 6.229299363
A74: 09:45:00 | B74: 13129 | C74: 2631 | D74: 10809 | E74: 2169 | F74: -2320 | G74: 374.85 | H74: -0.006715336295 | I74: 5.021645022
A75: 09:46:00 | B75: 12781 | C75: 2533 | D75: 11084 | E75: 2289 | F75: -1697 | G75: 375.05 | H75: -0.2035062901 | I75: 6.954918033
A76: 09:47:00 | B76: 12579 | C76: 2457 | D76: 11271 | E76: 2368 | F76: -1308 | G76: 375.2 | H76: -0.3599452818 | I76: =(D76-B76)/(E76-C76) -> 14.69662921
A77: 09:48:00 | B77: 12518 | C77: 2445 | D77: 11363 | E77: 2420 | F77: -1155 | G77: 375.3 | H77: -0.4243818554 | I77: 46.2
A78: 09:49:00 | B78: 12249 | C78: 2343 | D78: 11634 | E78: 2509 | F78: -615 | G78: 375.4 | H78: -0.5910057978 | I78: -3.704819277
A79: 09:50:00 | B79: 12030 | C79: 2252 | D79: 11786 | E79: 2541 | F79: -244 | G79: 375.55 | H79: -0.7035869292 | I79: -0.8442906574
A80: 09:51:00 | B80: 12032 | C80: 2284 | D80: 11736 | E80: 2513 | F80: -296 | G80: 375.65 | H80: -0.5978355633 | I80: -1.292576419
A81: 09:52:00 | B81: 12074 | C81: 2304 | D81: 11712 | E81: 2513 | F81: -362 | G81: 375.6 | H81: -0.5798863272 | I81: -1.732057416
A82: 09:53:00 | B82: 12169 | C82: 2367 | D82: 11559 | E82: 2495 | F82: -610 | G82: 375.55 | H82: -0.5082411549 | I82: -4.765625
A83: 09:54:00 | B83: 12235 | C83: 2399 | D83: 11620 | E83: 2520 | F83: -615 | G83: 375.55 | H83: -0.4889305729 | I83: -5.082644628
A84: 09:55:00 | B84: 12128 | C84: 2382 | D84: 11716 | E84: 2540 | F84: -412 | G84: 375.65 | H84: -0.4789213061 | I84: -2.607594937
A85: 09:56:00 | B85: 12128 | C85: 2377 | D85: 11717 | E85: 2529 | F85: -411 | G85: 375.7 | H85: -0.4691731572 | I85: -2.703947368
A86: 09:57:00 | B86: 12009 | C86: 2321 | D86: 12040 | E86: 2604 | F86: 31 | G86: 375.8 | H86: -0.5504069899 | I86: 0.109540636
A87: 09:58:00 | B87: 12234 | C87: 2398 | D87: 11754 | E87: 2517 | F87: -480 | G87: 375.65 | H87: -0.4319064059 | I87: =(D87-B87)/(E87-C87) -> -4.033613445
A88: 09:59:00 | B88: 12293 | C88: 2437 | D88: 11619 | E88: 2480 | F88: -674 | G88: 375.55 | H88: -0.3592361378 | I88: -15.6744186
A89: 10:00:00 | B89: 11916 | C89: 2292 | D89: 12024 | E89: 2625 | F89: 108 | G89: 375.85 | H89: -0.618381451 | I89: 0.3243243243
A90: 10:01:00 | B90: 12023 | C90: 2349 | D90: 11940 | E90: 2563 | F90: -83 | G90: 375.8 | H90: -0.4597450339 | I90: =(D90-B90)/(E90-C90) -> -0.3878504673
A91: 10:02:00 | B91: 12112 | C91: 2390 | D91: 11870 | E91: 2515 | F91: -242 | G91: 375.7 | H91: -0.3481005182 | I91: -1.936
A92: 10:03:00 | B92: 11990 | C92: 2325 | D92: 12028 | E92: 2593 | F92: 38 | G92: 375.85 | H92: -0.5183467483 | I92: 0.1417910448
A93: 10:04:00 | B93: 11885 | C93: 2289 | D93: 12084 | E93: 2607 | F93: 199 | G93: 375.9 | H93: -0.5570107901 | I93: 0.6257861635
A94: 10:05:00 | B94: 12074 | C94: 2378 | D94: 12001 | E94: 2543 | F94: -73 | G94: 375.8 | H94: -0.3581466894 | I94: -0.4424242424
A95: 10:06:00 | B95: 12362 | C95: 2469 | D95: 11773 | E95: 2487 | F95: -589 | G95: 375.65 | H95: -0.2730695363 | I95: -32.72222222
A96: 10:07:00 | B96: 12378 | C96: 2488 | D96: 11634 | E96: 2460 | F96: -744 | G96: 375.65 | H96: -0.2458120932 | I96: 26.57142857
A97: 10:08:00 | B97: 12570 | C97: 2536 | D97: 11509 | E97: 2448 | F97: -1061 | G97: 375.6 | H97: -0.2552357168 | I97: =(D97-B97)/(E97-C97) -> 12.05681818
A98: 10:09:00 | B98: 12670 | C98: 2589 | D98: 11467 | E98: 2423 | F98: -1203 | G98: 375.55 | H98: -0.1612184443 | I98: 7.246987952
A99: 10:10:00 | B99: 12394 | C99: 2507 | D99: 11677 | E99: 2483 | F99: -717 | G99: 375.6 | H99: -0.2409785826 | I99: 29.875
A100: 10:11:00 | B100: 12272 | C100: 2475 | D100: 11721 | E100: 2514 | F100: -551 | G100: 375.7 | H100: -0.2960926689 | I100: -14.12820513
A101: 10:12:00 | B101: 12567 | C101: 2574 | D101: 11324 | E101: 2401 | F101: -1243 | G101: 375.5 | H101: -0.1659162024 | I101: 7.184971098
A102: 10:13:00 | B102: 12352 | C102: 2483 | D102: 11633 | E102: 2535 | F102: -719 | G102: 375.65 | H102: -0.3856728317 | I102: -13.82692308
A103: 10:14:00 | B103: 12427 | C103: 2508 | D103: 11624 | E103: 2503 | F103: -803 | G103: 375.65 | H103: -0.3109170112 | I103: 160.6
A104: 10:15:00 | B104: 12302 | C104: 2440 | D104: 11820 | E104: 2587 | F104: -482 | G104: 375.75 | H104: -0.4728044383 | I104: -3.278911565
A105: 10:16:00 | B105: 12360 | C105: 2460 | D105: 11696 | E105: 2513 | F105: -664 | G105: 375.7 | H105: -0.3701920744 | I105: -12.52830189
A106: 10:17:00 | B106: 12301 | C106: 2457 | D106: 11790 | E106: 2557 | F106: -511 | G106: 375.7 | H106: -0.3956398908 | I106: -5.11
A107: 10:18:00 | B107: 12560 | C107: 2541 | D107: 11505 | E107: 2450 | F107: -1055 | G107: 375.6 | H107: -0.2470174847 | I107: 11.59340659
A108: 10:19:00 | B108: 12910 | C108: 2677 | D108: 11208 | E108: 2315 | F108: -1702 | G108: 375.35 | H108: 0.01890611246 | I108: 4.701657459
A109: 10:20:00 | B109: 12857 | C109: 2633 | D109: 11213 | E109: 2349 | F109: -1644 | G109: 375.35 | H109: -0.1095025204 | I109: 5.788732394
A110: 10:21:00 | B110: 12989 | C110: 2685 | D110: 11061 | E110: 2285 | F110: -1928 | G110: 375.25 | H110: 0.003083831481 | I110: 4.82
A111: 10:22:00 | B111: 12844 | C111: 2631 | D111: 11354 | E111: 2359 | F111: -1490 | G111: 375.4 | H111: -0.06873761486 | I111: 5.477941176
A112: 10:23:00 | B112: 13012 | C112: 2713 | D112: 11011 | E112: 2293 | F112: -2001 | G112: 375.25 | H112: 0.005839500305 | I112: 4.764285714
A113: 10:24:00 | B113: 13157 | C113: 2736 | D113: 10944 | E113: 2255 | F113: -2213 | G113: 375.2 | H113: 0.04437004837 | I113: 4.600831601
A114: 10:25:00 | B114: 13186 | C114: 2783 | D114: 10926 | E114: 2240 | F114: -2260 | G114: 375.15 | H114: 0.1396261101 | I114: 4.162062615
A115: 10:26:00 | B115: 13008 | C115: 2693 | D115: 11214 | E115: 2342 | F115: -1794 | G115: 375.3 | H115: -0.04208557912 | I115: 5.111111111
A116: 10:27:00 | B116: 13180 | C116: 2749 | D116: 10997 | E116: 2270 | F116: -2183 | G116: 375.15 | H116: 0.05002267545 | I116: 4.557411273
A117: 10:28:00 | B117: 13126 | C117: 2725 | D117: 11158 | E117: 2328 | F117: -1968 | G117: 375.25 | H117: -0.02392540748 | I117: 4.957178841
A118: 10:29:00 | B118: 13161 | C118: 2738 | D118: 11189 | E118: 2318 | F118: -1972 | G118: 375.25 | H118: 0.02021275992 | I118: 4.695238095
A119: 10:30:00 | B119: 13234 | C119: 2753 | D119: 11108 | E119: 2315 | F119: -2126 | G119: 375.2 | H119: -0.008847367765 | I119: 4.853881279
A120: 10:31:00 | B120: 12574 | C120: 2502 | D120: 11676 | E120: 2521 | F120: -898 | G120: 375.55 | H120: -0.3940840981 | I120: -47.26315789
A121: 10:32:00 | B121: 12636 | C121: 2558 | D121: 11610 | E121: 2477 | F121: -1026 | G121: 375.55 | H121: -0.2526751982 | I121: 12.66666667
A122: 10:33:00 | B122: 12434 | C122: 2492 | D122: 11756 | E122: 2534 | F122: -678 | G122: 375.7 | H122: -0.3502611672 | I122: -16.14285714
A123: 10:34:00 | B123: 12598 | C123: 2560 | D123: 11661 | E123: 2499 | F123: -937 | G123: 375.6 | H123: -0.2548272434 | I123: 15.36065574
A124: 10:35:00 | B124: 12613 | C124: 2556 | D124: 11677 | E124: 2509 | F124: -936 | G124: 375.55 | H124: -0.2806181003 | I124: 19.91489362
A125: 10:36:00 | B125: 12623 | C125: 2567 | D125: 11651 | E125: 2496 | F125: -972 | G125: 375.55 | H125: -0.2495447332 | I125: 13.69014085
A126: 10:37:00 | B126: 12943 | C126: 2678 | D126: 11247 | E126: 2356 | F126: -1696 | G126: 375.3 | H126: -0.05931529117 | I126: =(D126-B126)/(E126-C126) -> 5.267080745
A127: 10:38:00 | B127: 13114 | C127: 2750 | D127: 11038 | E127: 2262 | F127: -2076 | G127: 375.15 | H127: 0.1110251587 | I127: 4.254098361
A128: 10:39:00 | B128: 13112 | C128: 2721 | D128: 10977 | E128: 2279 | F128: -2135 | G128: 375.1 | H128: -0.002230389513 | I128: 4.830316742
A129: 10:40:00 | B129: 13172 | C129: 2752 | D129: 11025 | E129: 2296 | F129: -2147 | G129: 375.1 | H129: 0.01549205899 | I129: 4.708333333
A130: 10:41:00 | B130: 12825 | C130: 2607 | D130: 11275 | E130: 2412 | F130: -1550 | G130: 375.35 | H130: -0.244903694 | I130: =(D130-B130)/(E130-C130) -> 7.948717949
A131: 10:42:00 | B131: 12666 | C131: 2563 | D131: 11514 | E131: 2487 | F131: -1152 | G131: 375.55 | H131: =(D131/E131)-(B131/C131) -> -0.3121906956 | I131: =(D131-B131)/(E131-C131) -> 15.15789474
A132: 10:43:00 | B132: 12792 | C132: 2640 | D132: 11458 | E132: 2452 | F132: -1334 | G132: 375.5 | H132: -0.1725344802 | I132: 7.095744681
A133: 10:44:00 | B133: 12926 | C133: 2682 | D133: 11319 | E133: 2416 | F133: -1607 | G133: 375.45 | H133: -0.1345211022 | I133: 6.041353383
A134: 10:45:00 | B134: 12780 | C134: 2618 | D134: 11438 | E134: 2499 | F134: -1342 | G134: 375.5 | H134: =(D134/E134)-(B134/C134) -> -0.3045581869 | I134: =(D134-B134)/(E134-C134) -> 11.27731092
A135: 10:46:00 | B135: 12998 | C135: 2710 | D135: 11282 | E135: 2399 | F135: -1716 | G135: 375.35 | H135: =(D135/E135)-(B135/C135) -> -0.09351713275 | I135: =(D135-B135)/(E135-C135) -> 5.517684887
A136: 10:47:00 | B136: 12945 | C136: 2662 | D136: 11371 | E136: 2420 | F136: -1574 | G136: 375.4 | H136: -0.1641247183 | I136: 6.504132231
A137: 10:48:00 | B137: 12989 | C137: 2686 | D137: 11364 | E137: 2394 | F137: -1625 | G137: 375.3 | H137: -0.08894817087 | I137: 5.565068493
A138: 10:49:00 | B138: 13011 | C138: 2699 | D138: 11344 | E138: 2395 | F138: -1667 | G138: 375.3 | H138: -0.08413987706 | I138: 5.483552632
A139: 10:50:00 | B139: 12876 | C139: 2622 | D139: 11523 | E139: 2483 | F139: -1353 | G139: 375.45 | H139: -0.2699980001 | I139: 9.73381295
A140: 10:51:00 | B140: 13012 | C140: 2681 | D140: 11361 | E140: 2405 | F140: -1651 | G140: 375.3 | H140: -0.1295043817 | I140: 5.981884058
A141: 10:52:00 | B141: 13258 | C141: 2781 | D141: 10968 | E141: 2248 | F141: -2290 | G141: 375.05 | H141: 0.1116536846 | I141: 4.296435272
A142: 10:53:00 | B142: 13339 | C142: 2813 | D142: 11005 | E142: 2243 | F142: -2334 | G142: 375 | H142: 0.1644628412 | I142: 4.094736842
A143: 10:54:00 | B143: 13347 | C143: 2814 | D143: 10982 | E143: 2223 | F143: -2365 | G143: 375.05 | H143: 0.1971005777 | I143: 4.001692047
A144: 10:55:00 | B144: 13531 | C144: 2850 | D144: 10729 | E144: 2156 | F144: -2802 | G144: 374.85 | H144: 0.2286257852 | I144: 4.037463977
A145: 10:56:00 | B145: 13625 | C145: 2902 | D145: 10712 | E145: 2171 | F145: -2913 | G145: 374.8 | H145: 0.2390938316 | I145: 3.98495212
A146: 10:57:00 | B146: 13447 | C146: 2798 | D146: 11155 | E146: 2329 | F146: -2292 | G146: 375 | H146: -0.01632353478 | I146: 4.886993603
A147: 10:58:00 | B147: 13366 | C147: 2763 | D147: 11258 | E147: 2356 | F147: -2108 | G147: 375.05 | H147: -0.05905744537 | I147: 5.179361179
A148: 10:59:00 | B148: 13420 | C148: 2764 | D148: 11244 | E148: 2370 | F148: -2176 | G148: 375.1 | H148: -0.1109784022 | I148: 5.52284264
A149: 11:00:00 | B149: 13450 | C149: 2770 | D149: 11247 | E149: 2374 | F149: -2203 | G149: 375.05 | H149: -0.1180219526 | I149: 5.563131313
A150: 11:01:00 | B150: 13286 | C150: 2707 | D150: 11454 | E150: 2446 | F150: -1832 | G150: 375.2 | H150: -0.2252689116 | I150: 7.019157088
A151: 11:02:00 | B151: 13248 | C151: 2696 | D151: 11487 | E151: 2461 | F151: -1761 | G151: 375.2 | H151: -0.2463317968 | I151: 7.493617021
A152: 11:03:00 | B152: 13067 | C152: 2643 | D152: 11663 | E152: 2527 | F152: -1404 | G152: 375.35 | H152: -0.328648852 | I152: 12.10344828
A153: 11:04:00 | B153: 12765 | C153: 2571 | D153: 11870 | E153: 2565 | F153: -895 | G153: 375.5 | H153: -0.3373138538 | I153: 149.1666667
A154: 11:05:00 | B154: 12971 | C154: 2655 | D154: 11725 | E154: 2511 | F154: -1246 | G154: 375.35 | H154: -0.2160446577 | I154: 8.652777778
A155: 11:06:00 | B155: 12875 | C155: 2610 | D155: 11866 | E155: 2571 | F155: -1009 | G155: 375.45 | H155: -0.3176254152 | I155: 25.87179487
A156: 11:07:00 | B156: 12912 | C156: 2618 | D156: 11816 | E156: 2544 | F156: -1096 | G156: 375.4 | H156: -0.2873550793 | I156: 14.81081081
A157: 11:08:00 | B157: 12865 | C157: 2597 | D157: 11889 | E157: 2591 | F157: -976 | G157: 375.45 | H157: -0.3652169984 | I157: 162.6666667
A158: 11:09:00 | B158: 12616 | C158: 2523 | D158: 12081 | E158: 2646 | F158: -535 | G158: 375.6 | H158: -0.4346367164 | I158: -4.349593496
A159: 11:10:00 | B159: 12288 | C159: 2400 | D159: 12399 | E159: 2747 | F159: 111 | G159: 375.8 | H159: -0.6063487441 | I159: 0.3198847262
A160: 11:11:00 | B160: 12144 | C160: 2368 | D160: 12452 | E160: 2750 | F160: 308 | G160: 375.9 | H160: -0.6003783784 | I160: 0.8062827225
A161: 11:12:00 | B161: 11947 | C161: 2263 | D161: 12569 | E161: 2753 | F161: 622 | G161: 376 | H161: -0.7137104599 | I161: 1.269387755
A162: 11:13:00 | B162: 11987 | C162: 2317 | D162: 12543 | E162: 2742 | F162: 556 | G162: 375.95 | H162: -0.5991019663 | I162: 1.308235294
A163: 11:14:00 | B163: 11878 | C163: 2267 | D163: 12716 | E163: 2791 | F163: 838 | G163: 376.05 | H163: -0.6834505074 | I163: 1.599236641
A164: 11:15:00 | B164: 11732 | C164: 2209 | D164: 12682 | E164: 2806 | F164: 950 | G164: 376.1 | H164: -0.7913995974 | I164: 1.591289782
A165: 11:16:00 | B165: 12047 | C165: 2338 | D165: 12582 | E165: 2736 | F165: 535 | G165: 376.05 | H165: -0.5540104003 | I165: 1.344221106
A166: 11:17:00 | B166: 12006 | C166: 2309 | D166: 12610 | E166: 2742 | F166: 604 | G166: 376.05 | H166: -0.600820561 | I166: 1.394919169
A167: 11:18:00 | B167: 12132 | C167: 2355 | D167: 12438 | E167: 2692 | F167: 306 | G167: 376 | H167: -0.5312357445 | I167: 0.9080118694
A168: 11:19:00 | B168: 12215 | C168: 2379 | D168: 12493 | E168: 2724 | F168: 278 | G168: 376.05 | H168: -0.5482401075 | I168: 0.8057971014
A169: 11:20:00 | B169: 12374 | C169: 2437 | D169: 12331 | E169: 2646 | F169: -43 | G169: 375.95 | H169: -0.4173124956 | I169: -0.2057416268
A170: 11:21:00 | B170: 12513 | C170: 2502 | D170: 12308 | E170: 2640 | F170: -205 | G170: 375.85 | H170: -0.3390778286 | I170: -1.485507246
A171: 11:22:00 | B171: 12349 | C171: 2432 | D171: 12448 | E171: 2703 | F171: 99 | G171: 376 | H171: -0.4724603937 | I171: 0.3653136531
A172: 11:23:00 | B172: 12597 | C172: 2509 | D172: 12193 | E172: 2613 | F172: -404 | G172: 375.85 | H172: -0.3544414238 | I172: -3.884615385
A173: 11:24:00 | B173: 12637 | C173: 2514 | D173: 12221 | E173: 2630 | F173: -416 | G173: 375.9 | H173: -0.3798826949 | I173: -3.586206897
A174: 11:25:00 | B174: 12589 | C174: 2481 | D174: 12263 | E174: 2647 | F174: -326 | G174: 375.9 | H174: -0.4413718039 | I174: -1.963855422
A175: 11:26:00 | B175: 12412 | C175: 2414 | D175: 12599 | E175: 2788 | F175: 187 | G175: 376.05 | H175: -0.6226635278 | I175: 0.5
A176: 11:27:00 | B176: 12626 | C176: 2479 | D176: 12511 | E176: 2734 | F176: -115 | G176: 375.95 | H176: -0.5171037299 | I176: -0.4509803922
A177: 11:28:00 | B177: 12626 | C177: 2479 | D177: 12511 | E177: 1970 | F177: =D177-B177 -> -115 | G177: 375.95 | H177: 1.257578686 | I177: 0.2259332024
A178: 11:29:00 | B178: 12626 | C178: 2479 | D178: 12511 | E178: 1970 | F178: =D178-B178 -> -115 | G178: 375.95 | H178: 1.257578686 | I178: 0.2259332024
A179: 11:30:00 | B179: 12478 | C179: 2434 | D179: 12675 | E179: 2786 | F179: 197 | G179: 376.05 | H179: -0.5770072926 | I179: 0.5596590909
A180: 11:31:00 | B180: 12316 | C180: 2383 | D180: 12785 | E180: 2834 | F180: 469 | G180: 376.1 | H180: -0.6569838224 | I180: 1.039911308
A181: 11:32:00 | B181: 12481 | C181: 2451 | D181: 12593 | E181: 2763 | F181: 112 | G181: 376 | H181: -0.5344801541 | I181: 0.358974359
A182: 11:33:00 | B182: 12605 | C182: 2485 | D182: 12496 | E182: 2727 | F182: -109 | G182: 375.9 | H182: -0.4901097085 | I182: -0.4504132231
A183: 11:34:00 | B183: 12796 | C183: 2553 | D183: 12279 | E183: 2667 | F183: -517 | G183: 375.85 | H183: -0.4080930835 | I183: -4.535087719
A184: 11:35:00 | B184: 12780 | C184: 2563 | D184: 12170 | E184: 2613 | F184: -610 | G184: 375.8 | H184: -0.3288623063 | I184: -12.2
A185: 11:36:00 | B185: 12705 | C185: 2521 | D185: 12365 | E185: 2678 | F185: -340 | G185: 375.85 | H185: -0.4224151185 | I185: -2.165605096
A186: 11:37:00 | B186: 12616 | C186: 2486 | D186: 12382 | E186: 2699 | F186: -234 | G186: 375.95 | H186: -0.48719394 | I186: -1.098591549
A187: 11:38:00 | B187: 12632 | C187: 2512 | D187: 12375 | E187: 2681 | F187: -257 | G187: 375.9 | H187: -0.412847426 | I187: -1.520710059
A188: 11:39:00 | B188: 12690 | C188: 2526 | D188: 12342 | E188: 2679 | F188: -348 | G188: 375.85 | H188: -0.41681008 | I188: -2.274509804
A189: 11:40:00 | B189: 12853 | C189: 2571 | D189: 12147 | E189: 2604 | F189: -706 | G189: 375.75 | H189: -0.3344755488 | I189: -21.39393939
A190: 11:41:00 | B190: 12883 | C190: 2608 | D190: 12175 | E190: 2582 | F190: -708 | G190: 375.75 | H190: -0.2244636654 | I190: 27.23076923
A191: 11:42:00 | B191: 12753 | C191: 2571 | D191: 12278 | E191: 2638 | F191: -475 | G191: 375.8 | H191: -0.306043173 | I191: -7.089552239
A192: 11:43:00 | B192: 12805 | C192: 2565 | D192: 12248 | E192: 2648 | F192: -557 | G192: 375.8 | H192: -0.3668250855 | I192: -6.710843373
A193: 11:44:00 | B193: 12933 | C193: 2621 | D193: 12101 | E193: 2593 | F193: -832 | G193: 375.7 | H193: -0.2675809744 | I193: 29.71428571
A194: 11:45:00 | B194: 13028 | C194: 2647 | D194: 12003 | E194: 2578 | F194: -1025 | G194: 375.65 | H194: -0.265863429 | I194: 14.85507246
A195: 11:46:00 | B195: 13082 | C195: 2658 | D195: 12019 | E195: 2576 | F195: -1063 | G195: 375.65 | H195: -0.2559848039 | I195: 12.96341463
A196: 11:47:00 | B196: 12830 | C196: 2579 | D196: 12160 | E196: 2652 | F196: -670 | G196: 375.7 | H196: -0.3895777299 | I196: -9.178082192
A197: 11:48:00 | B197: 12833 | C197: 2576 | D197: 12160 | E197: 2654 | F197: -673 | G197: 375.7 | H197: -0.3999912823 | I197: -8.628205128
A198: 11:49:00 | B198: 13097 | C198: 2681 | D198: 11867 | E198: 2538 | F198: -1230 | G198: 375.6 | H198: -0.2093885731 | I198: 8.601398601
A199: 11:50:00 | B199: 13025 | C199: 2646 | D199: 11889 | E199: 2536 | F199: -1136 | G199: 375.6 | H199: =(D199/E199)-(B199/C199) -> -0.2344330827 | I199: =(D199-B199)/(E199-C199) -> 10.32727273
A200: 11:51:00 | B200: 12812 | C200: 2563 | D200: 12088 | E200: 2639 | F200: -724 | G200: 375.7 | H200: -0.4183065713 | I200: -9.526315789
A201: 11:52:00 | B201: 12941 | C201: 2622 | D201: 11995 | E201: 2590 | F201: -946 | G201: 375.65 | H201: -0.3042712539 | I201: 29.5625
A202: 11:53:00 | B202: 12894 | C202: 2589 | D202: 12047 | E202: 2619 | F202: -847 | G202: 375.7 | H202: -0.3804540047 | I202: -28.23333333
A203: 11:54:00 | B203: 13014 | C203: 2624 | D203: 11943 | E203: 2571 | F203: -1071 | G203: 375.6 | H203: -0.3143294462 | I203: 20.20754717
... 232 more rows

Sheet 2. 순매수에 따른 익일가격 (hidden)
I1: 15:35:00 | T1: 15:45:00 | Z1: 당일 | AB1: 발생횟수 | AC1: 성공횟수 | AD1: 확률
B2: 날짜 | C2: 시간 | D2: 매도총잔량 | E2: 매도건수 | F2: 매수총잔량 | G2: 매수건수 | H2: 순매수총잔량 | I2: 선물지수 | J2: 순매수건수 | K2: 평균계약수 | M2: 날짜 | N2: 시간 | O2: 매도총잔량 | P2: 매도건수 | Q2: 매수총잔량 | R2: 매수건수 | S2: 순매수총잔량 | T2: 선물지수 | U2: 순매수건수 | V2: 평균계약수 | W2: 종가 | Y2: 순매수총잔량 | Z2: 시작가 | AA2: 일치여부 | AB2: =COUNTA(AA4:AA1000) -> 123 | AC2: =COUNTIF(AA4:AA1000,"성공") -> 64 | AD2: =AC2/AB2 -> 0.5203252033
B3: 2023-10-12 | C3: 15:35:00 | D3: 9508 | E3: 1216 | F3: 15618 | G3: 2033 | H3: 6110 | I3: 330.4 | J3: -0.1368359567 | K3: 7.478580171 | M3: 2023-10-12 | N3: 15:46:00 | O3: 10474 | P3: 1101 | Q3: 13874 | R3: 1542 | S3: 3400 | T3: 330.45 | U3: -0.5157638793 | V3: 7.709750567 | W3: =T3 -> 330.45 | Y3: =IF(H3>S3,"하락","상승") -> 하락 | AB3: 순매수총잔량 증감율
A4: 금 | B4: 2023-10-13 | C4: 15:35:00 | D4: 14867 | E4: 1854 | F4: 13866 | G4: 1712 | H4: -1001 | I4: 327.45 | J4: 0.08042096402 | K4: 7.049295775 | M4: 2023-10-13 | N4: 15:46:00 | O4: 11298 | P4: 1240 | Q4: 11489 | R4: 1268 | S4: 191 | T4: 327.85 | U4: -0.05056477053 | V4: 6.821428571 | W4: 327.85 | Y4: 상승 | Z4: 327.45 | AA4: =IF(AND(Y3="상승",Z4>W3),"성공",IF(AND(Y3="하락",Z4<W3),"성공",IF(AND(Y3="상승",Z4=W3),"동일가",IF(AND(Y3="하락",Z4=W3),"동일가","실패")))) -> 성공 | AB4: =S4/H4-1 -> -1.190809191
B5: 2023-10-16 | C5: 15:35:00 | D5: 15940 | E5: 1970 | F5: 11709 | G5: 1602 | H5: -4231 | I5: 325.05 | J5: -0.7823817943 | K5: 11.49728261 | M5: 2023-10-16 | N5: 15:46:00 | O5: 7849 | P5: 1022 | Q5: 5360 | R5: 774 | S5: -2489 | T5: 324.85 | U5: -0.7549745395 | V5: 10.03629032 | W5: 324.85 | Y5: =IF(H5>S5,"하락","상승") -> 상승 | Z5: 326.2 | AA5: 실패 | AB5: -0.4117229969
B6: 2023-10-17 | C6: 15:35:00 | D6: 13240 | E6: 1889 | F6: 17947 | G6: 2371 | H6: 4707 | I6: 328.7 | J6: 0.5603805378 | K6: 9.765560166 | M6: 2023-10-17 | N6: 15:46:00 | O6: 4526 | P6: 1045 | Q6: 8044 | R6: 1103 | S6: 3518 | T6: 328.8 | U6: 2.961737237 | V6: 60.65517241 | W6: 328.8 | Y6: 하락 | Z6: 327.15 | AA6: 성공 | AB6: -0.2526025069
B7: 2023-10-18 | C7: 15:35:00 | D7: 12859 | E7: 1924 | F7: 19132 | G7: 2629 | H7: 6273 | I7: 330.15 | J7: 0.5938198124 | K7: 8.89787234 | M7: 2023-10-18 | N7: 15:46:00 | O7: 5359 | P7: 994 | Q7: 9271 | R7: 1403 | S7: 3912 | T7: 330.2 | U7: 1.216634805 | V7: 9.564792176 | W7: 330.2 | Y7: 하락 | Z7: 327.95 | AA7: 성공 | AB7: -0.3763749402
B8: 2023-10-19 | C8: 15:35:00 | D8: 21327 | E8: 2960 | F8: 9834 | G8: 1197 | H8: -11493 | I8: 323.7 | J8: 1.01047128 | K8: 6.519001702 | M8: 2023-10-19 | N8: 15:46:00 | O8: 9871 | P8: 1718 | Q8: 5219 | R8: 684 | S8: -4652 | T8: 323.7 | U8: 1.8844825 | V8: 4.499032882 | W8: 323.7 | Y8: 상승 | Z8: 326.5 | AA8: 성공 | AB8: -0.5952318803
A9: 금 | B9: 2023-10-20 | C9: 15:35:00 | D9: 18708 | E9: 2366 | F9: 11741 | G9: 1732 | H9: -6967 | I9: 319.1 | J9: -0.263889643 | K9: 7.72796518 | M9: 2023-10-20 | N9: 15:46:00 | O9: 9208 | P9: 1203 | Q9: 6245 | R9: 949 | S9: -2963 | T9: 318.85 | U9: -1.073586669 | V9: 11.66535433 | W9: 318.85 | Y9: 상승 | Z9: 321 | AA9: 실패 | AB9: -0.5747093441
B10: 2023-10-23 | C10: 15:35:00 | D10: 14892 | E10: 2334 | F10: 14494 | G10: 1833 | H10: -398 | I10: 317.15 | J10: 1.52679314 | K10: 0.7944111776 | M10: 2023-10-23 | N10: 15:46:00 | O10: 8073 | P10: 1395 | Q10: 6831 | R10: 945 | S10: -1242 | T10: 317 | U10: 1.441474654 | V10: 2.76 | W10: 317 | Y10: 하락 | Z10: 317.15 | AA10: =IF(AND(Y9="상승",Z10>W9),"성공",IF(AND(Y9="하락",Z10<W9),"성공",IF(AND(Y9="상승",Z10=W9),"동일가",IF(AND(Y9="하락",Z10=W9),"동일가","실패")))) -> 실패 | AB10: =S10/H10-1 -> 2.120603015
B11: 2023-10-24 | C11: 15:35:00 | D11: 11514 | E11: 1530 | F11: 17453 | G11: 2719 | H11: 5939 | I11: 319.65 | J11: -1.106586187 | K11: 4.994953743 | M11: 2023-10-24 | N11: 15:46:00 | O11: 5906 | P11: 849 | Q11: 7700 | R11: 1211 | S11: 1794 | T11: 319.55 | U11: -0.598037814 | V11: 4.955801105 | W11: 319.55 | Y11: 하락 | Z11: 318.55 | AA11: 실패 | AB11: -0.6979289443
B12: 2023-10-25 | C12: 15:35:00 | D12: 18960 | E12: 2689 | F12: 10553 | G12: 1355 | H12: -8407 | I12: 317.75 | J12: 0.9912027057 | K12: 5.52532391 | M12: 2023-10-25 | N12: 15:46:00 | O12: 8726 | P12: 1370 | Q12: 4076 | R12: 566 | S12: -4650 | T12: 317.85 | U12: 0.8320703619 | V12: 5.78358209 | W12: 317.85 | Y12: 상승 | Z12: 320.3 | AA12: 실패 | AB12: -0.4468894968
B13: 2023-10-26 | C13: 15:35:00 | D13: 20611 | E13: 2970 | F13: 8651 | G13: 1141 | H13: -11960 | I13: 309.4 | J13: 0.5471770049 | K13: 6.249262537 | M13: 2023-10-26 | N13: 15:46:00 | O13: 8791 | P13: 1423 | Q13: 6158 | R13: 680 | S13: -2633 | T13: 309.15 | U13: 2.878088959 | V13: 3.543741588 | W13: 309.15 | Y13: =IF(H13>S13,"하락","상승") -> 상승 | Z13: 312.95 | AA13: 실패 | AB13: -0.7798494983
A14: 금 | B14: 2023-10-27 | C14: 15:35:00 | D14: 14273 | E14: 2133 | F14: 13278 | G14: 1990 | H14: -995 | I14: 309.5 | J14: -0.01915249006 | K14: 6.958041958 | M14: 2023-10-27 | N14: 15:46:00 | O14: 7000 | P14: 1081 | Q14: 6563 | R14: 956 | S14: -437 | T14: 309.2 | U14: 0.3895771001 | V14: 3.496 | W14: 309.2 | Y14: 상승 | Z14: 309.95 | AA14: 성공 | AB14: -0.5608040201
B15: 2023-10-30 | C15: 15:35:00 | D15: 10351 | E15: 1519 | F15: 18337 | G15: 2271 | H15: 7986 | I15: 310.3 | J15: 1.26006501 | K15: 10.61968085 | M15: 2023-10-30 | N15: 15:46:00 | O15: 3324 | P15: 627 | Q15: 7833 | R15: 941 | S15: 4509 | T15: 310.2 | U15: 3.022687866 | V15: 14.35987261 | W15: 310.2 | Y15: 하락 | Z15: 307.25 | AA15: 실패 | AB15: -0.4353869271
B16: 2023-10-31 | C16: 15:35:00 | D16: 19479 | E16: 2879 | F16: 10061 | G16: 1313 | H16: -9418 | I16: 306.75 | J16: 0.8967137877 | K16: 6.014048531 | M16: 2023-10-31 | N16: 15:46:00 | O16: 9313 | P16: 1622 | Q16: 4459 | R16: 643 | S16: -4854 | T16: 307.1 | U16: 1.19300424 | V16: 4.958120531 | W16: 307.1 | Y16: 상승 | Z16: 311.65 | AA16: =IF(AND(Y15="상승",Z16>W15),"성공",IF(AND(Y15="하락",Z16<W15),"성공",IF(AND(Y15="상승",Z16=W15),"동일가",IF(AND(Y15="하락",Z16=W15),"동일가","실패")))) -> 실패 | AB16: =S16/H16-1 -> -0.4846039499
B17: 2023-11-01 | C17: 15:35:00 | D17: 12505 | E17: 1840 | F17: 18703 | G17: 2301 | H17: 6198 | I17: 310.8 | J17: 1.332009476 | K17: 13.44468547 | M17: 2023-11-01 | N17: 15:46:00 | O17: 6095 | P17: 1011 | Q17: 7729 | R17: 1068 | S17: 1634 | T17: 311.05 | U17: 1.208206915 | V17: 28.66666667 | W17: 311.05 | Y17: 하락 | Z17: 308.4 | AA17: 성공 | AB17: -0.7363665699
B18: 2023-11-02 | C18: 15:35:00 | D18: 15256 | E18: 2159 | F18: 17094 | G18: 1861 | H18: 1838 | I18: 315.9 | J18: 2.119149834 | K18: -6.167785235 | M18: 2023-11-02 | N18: 15:46:00 | O18: 7632 | P18: 1221 | Q18: 7674 | R18: 962 | S18: 42 | T18: 316.15 | U18: 1.726516727 | V18: -0.1621621622 | W18: 316.15 | Y18: 하락 | Z18: 316.05 | AA18: 실패 | AB18: -0.9771490751
A19: 금 | B19: 2023-11-03 | C19: 15:35:00 | D19: 15120 | E19: 2050 | F19: 15477 | G19: 1950 | H19: 357 | I19: 319.5 | J19: 0.5613133208 | K19: -3.57 | M19: 2023-11-03 | N19: 15:45:00 | O19: 14160 | P19: 1654 | Q19: 13848 | R19: 1299 | S19: -312 | T19: 319.6 | U19: 2.099443996 | V19: 0.8788732394 | W19: 319.6 | Y19: =IF(H19>S19,"하락","상승") -> 하락 | Z19: 319.7 | AA19: 실패 | AB19: -1.87394958
B20: 2023-11-06 | C20: 15:35:00 | D20: 3920 | E20: 606 | F20: 24897 | G20: 3711 | H20: 20977 | I20: 334.4 | J20: 0.2403264579 | K20: 6.755877617 | M20: 2023-11-06 | N20: 15:45:00 | O20: 16699 | P20: 1125 | Q20: 25667 | R20: 2368 | S20: 8968 | T20: 335.3 | U20: -4.004450826 | V20: 7.214802896 | W20: 335.3 | Y20: 하락 | Z20: 324 | AA20: 실패 | AB20: -0.5724841493
B21: 2023-11-07 | C21: 15:35:00 | D21: 16844 | E21: 2310 | F21: 13014 | G21: 1871 | H21: -3830 | I21: 328.4 | J21: -0.3361361959 | K21: 8.724373576 | M21: 2023-11-07 | N21: 15:45:00 | O21: 18430 | P21: 1499 | Q21: 16567 | R21: 1414 | S21: -1863 | T21: 328.4 | U21: -0.5784558871 | V21: 21.91764706 | W21: 328.4 | Y21: 상승 | Z21: 334.9 | AA21: 성공 | AB21: -0.5135770235
B22: 2023-11-08 | C22: 15:35:00 | D22: 18810 | E22: 2785 | F22: 7789 | G22: 1052 | H22: -11021 | I22: 324.9 | J22: 0.6499528981 | K22: 6.35949221 | M22: 2023-11-08 | N22: 15:45:00 | O22: 16585 | P22: 2058 | Q22: 10002 | R22: 923 | S22: -6583 | T22: 325.1 | U22: 2.777608087 | V22: 5.8 | W22: 325.1 | Y22: 상승 | Z22: 331.1 | AA22: =IF(AND(Y21="상승",Z22>W21),"성공",IF(AND(Y21="하락",Z22<W21),"성공",IF(AND(Y21="상승",Z22=W21),"동일가",IF(AND(Y21="하락",Z22=W21),"동일가","실패")))) -> 성공 | AB22: =S22/H22-1 -> -0.4026857817
B23: 2023-11-09 | C23: 15:35:00 | D23: 13157 | E23: 1940 | F23: 8442 | G23: 726 | H23: -4715 | I23: 326.65 | J23: 4.846140411 | K23: 3.883855025 | M23: 2023-11-09 | N23: 15:45:00 | O23: 19892 | P23: 2460 | Q23: 11790 | R23: 1098 | S23: -8102 | T23: 326.7 | U23: 2.651526056 | V23: 5.948604993 | W23: =T23 -> 326.7 | Y23: 하락 | Z23: 325.95 | AA23: 성공 | AB23: 0.7183457052
A24: 금 | B24: 2023-11-10 | C24: 15:35:00 | D24: 14965 | E24: 2234 | F24: 15837 | G24: 2507 | H24: 872 | I24: 324.65 | J24: -0.3816345566 | K24: 3.194139194 | M24: 2023-11-10 | N24: 15:45:00 | O24: 12537 | P24: 1437 | Q24: 13881 | R24: 1574 | S24: 1344 | T24: 324.7 | U24: 0.09450676839 | V24: 9.810218978 | W24: 324.7 | Y24: 상승 | Z24: 324 | AA24: 성공 | AB24: 0.5412844037
B25: 2023-11-13 | C25: 15:35:00 | D25: 14877 | E25: 1935 | F25: 10824 | G25: 1241 | H25: -4053 | I25: 324.75 | J25: 1.033626295 | K25: 5.840057637 | M25: 2023-11-13 | N25: 15:45:00 | O25: 14131 | P25: 1907 | Q25: 10515 | R25: 1203 | S25: -3616 | T25: 325.1 | U25: 1.330580209 | V25: 5.136363636 | W25: 325.1 | Y25: =IF(H25>S25,"하락","상승") -> 상승 | Z25: 328.25 | AA25: 성공 | AB25: -0.1078213669
B26: 2023-11-14 | C26: 15:35:00 | D26: 13349 | E26: 1970 | F26: 15127 | G26: 2091 | H26: 1778 | I26: 327.65 | J26: 0.4581955055 | K26: 14.69421488 | M26: 2023-11-14 | N26: 15:45:00 | O26: 11995 | P26: 1573 | Q26: 13193 | R26: 1354 | S26: 1198 | T26: 327.8 | U26: 2.118166042 | V26: -5.470319635 | W26: 327.8 | Y26: 하락 | Z26: 326.6 | AA26: 성공 | AB26: -0.3262092238
B27: 2023-11-15 | C27: 15:35:00 | D27: 12553 | E27: 1770 | F27: 21897 | G27: 2890 | H27: 9344 | I27: 335.1 | J27: 0.4847262135 | K27: 8.342857143 | M27: 2023-11-15 | N27: 15:45:00 | O27: 13505 | P27: 1574 | Q27: 20304 | R27: 2003 | S27: 6799 | T27: 335.25 | U27: 1.556743982 | V27: 15.84848485 | W27: 335.25 | Y27: 하락 | Z27: 334.8 | AA27: 실패 | AB27: -0.2723672945
B28: 2023-11-16 | C28: 16:35:00 | D28: 15736 | E28: 1972 | F28: 15449 | G28: 1947 | H28: -287 | I28: 334.7 | J28: -0.04494458109 | K28: 11.48 | M28: 2023-11-16 | N28: 16:45:00 | O28: 14323 | P28: 1656 | Q28: 12603 | R28: 1365 | S28: -1720 | T28: 334.55 | U28: 0.5838124436 | V28: 5.910652921 | W28: 334.55 | Y28: 하락 | Z28: 334.35 | AA28: 성공 | AB28: 4.993031359
A29: 금 | B29: 2023-11-17 | C29: 15:35:00 | D29: 14539 | E29: 1874 | F29: 13556 | G29: 1595 | H29: -983 | I29: 333.05 | J29: 0.7407884832 | K29: 3.523297491 | M29: 2023-11-17 | N29: 15:45:00 | O29: 7777 | P29: 1096 | Q29: 5924 | R29: 838 | S29: -1853 | T29: 333.1 | U29: -0.02659050921 | V29: 7.182170543 | W29: 333.1 | Y29: 하락 | Z29: 334.2 | AA29: =IF(AND(Y28="상승",Z29>W28),"성공",IF(AND(Y28="하락",Z29<W28),"성공",IF(AND(Y28="상승",Z29=W28),"동일가",IF(AND(Y28="하락",Z29=W28),"동일가","실패")))) -> 성공 | AB29: =S29/H29-1 -> 0.8850457782
B30: 2023-11-20 | C30: 15:35:00 | D30: 11499 | E30: 1434 | F30: 19554 | G30: 2835 | H30: 8055 | I30: 335.55 | J30: -1.121473955 | K30: 5.749464668 | M30: 2023-11-20 | N30: 15:45:00 | O30: 4624 | P30: 708 | Q30: 8556 | R30: 1362 | S30: 3932 | T30: 335.55 | U30: -0.2491351203 | V30: 6.012232416 | W30: 335.55 | Y30: 하락 | Z30: 332.35 | AA30: 성공 | AB30: -0.5118559901
B31: 2023-11-21 | C31: 15:35:00 | D31: 13571 | E31: 1720 | F31: 13268 | G31: 1747 | H31: -303 | I31: 337.2 | J31: -0.2953824496 | K31: -11.22222222 | M31: 2023-11-21 | N31: 15:45:00 | O31: 6977 | P31: 1040 | Q31: 6827 | R31: 975 | S31: -150 | T31: 337.45 | U31: 0.2933974359 | V31: 2.307692308 | W31: 337.45 | Y31: =IF(H31>S31,"하락","상승") -> 상승 | Z31: 338 | AA31: 실패 | AB31: -0.504950495
B32: 2023-11-22 | C32: 15:35:00 | D32: 12155 | E32: 1603 | F32: 21455 | G32: 3128 | H32: 9300 | I32: 337.75 | J32: -0.7236421719 | K32: 6.098360656 | M32: 2023-11-22 | N32: 15:45:00 | O32: 9124 | P32: 1080 | Q32: 16184 | R32: 1840 | S32: 7060 | T32: 338 | U32: 0.3475040258 | V32: 9.289473684 | W32: 338 | Y32: 하락 | Z32: 335 | AA32: 실패 | AB32: -0.2408602151
B33: 2023-11-23 | C33: 15:35:00 | D33: 11017 | E33: 1962 | F33: 11446 | G33: 1862 | H33: 429 | I33: 337.6 | J33: 0.5319650152 | K33: -4.29 | M33: 2023-11-23 | N33: 15:45:00 | O33: 9842 | P33: 1464 | Q33: 11671 | R33: 1161 | S33: 1829 | T33: 337.95 | U33: 3.329863317 | V33: -6.03630363 | W33: 337.95 | Y33: 상승 | Z33: 337.45 | AA33: 성공 | AB33: 3.263403263
A34: 금 | B34: 2023-11-24 | C34: 15:35:00 | D34: 14724 | E34: 2624 | F34: 8163 | G34: 1053 | H34: -6561 | I34: 334.75 | J34: 2.140856264 | K34: 4.176320815 | M34: 2023-11-24 | N34: 15:45:00 | O34: 14916 | P34: 2014 | Q34: 8718 | R34: 815 | S34: -6198 | T34: 334.7 | U34: 3.290775614 | V34: 5.169307756 | W34: 334.7 | Y34: 상승 | Z34: 337.2 | AA34: 실패 | AB34: -0.05532693187
B35: 2023-11-27 | C35: 15:35:00 | D35: 16972 | E35: 2558 | F35: 14481 | G35: 1862 | H35: -2491 | I35: 334.2 | J35: 1.142250382 | K35: 3.579022989 | M35: 2023-11-27 | N35: 15:45:00 | O35: 11748 | P35: 1759 | Q35: 12065 | R35: 1236 | S35: 317 | T35: 334.2 | U35: 3.082532091 | V35: -0.6061185468 | W35: 334.2 | Y35: 상승 | Z35: 334.35 | AA35: 실패 | AB35: -1.127258129
B36: 2023-11-28 | C36: 15:35:00 | D36: 10701 | E36: 1284 | F36: 19672 | G36: 3042 | H36: 8971 | I36: 338.25 | J36: -1.86731399 | K36: 5.102957907 | M36: 2023-11-28 | N36: 15:45:00 | O36: 10306 | P36: 1177 | Q36: 16153 | R36: 1705 | S36: 5847 | T36: 338.4 | U36: 0.7177405651 | V36: 11.07386364 | W36: 338.4 | Y36: 하락 | Z36: 335.75 | AA36: =IF(AND(Y35="상승",Z36>W35),"성공",IF(AND(Y35="하락",Z36<W35),"성공",IF(AND(Y35="상승",Z36=W35),"동일가",IF(AND(Y35="하락",Z36=W35),"동일가","실패")))) -> 성공 | AB36: =S36/H36-1 -> -0.3482331959
B37: 2023-11-29 | C37: 15:35:00 | D37: 13518 | E37: 1890 | F37: 16056 | G37: 2344 | H37: 2538 | I37: 337.3 | J37: -0.3025516008 | K37: 5.59030837 | M37: 2023-11-29 | N37: 15:45:00 | O37: 9769 | P37: 1267 | Q37: 12661 | R37: 1346 | S37: 2892 | T37: 337.55 | U37: 1.696049917 | V37: 36.60759494 | W37: 337.55 | Y37: =IF(H37>S37,"하락","상승") -> 상승 | Z37: 338.35 | AA37: 성공 | AB37: 0.1394799054
B38: 2023-11-30 | C38: 15:35:00 | D38: 12252 | E38: 1347 | F38: 20299 | G38: 2994 | H38: 8047 | I38: 339.05 | J38: -2.315875255 | K38: 4.885853066 | M38: 2023-11-30 | N38: 15:45:00 | O38: 12711 | P38: 1064 | Q38: 15831 | R38: 1811 | S38: 3120 | T38: 339.15 | U38: -3.204849333 | V38: 4.176706827 | W38: 339.15 | Y38: 하락 | Z38: 337.05 | AA38: 실패 | AB38: -0.6122778675
A39: 금 | B39: 2023-12-01 | C39: 15:35:00 | D39: 16548 | E39: 2482 | F39: 11783 | G39: 1535 | H39: -4765 | I39: 335.15 | J39: 1.009017631 | K39: 5.031678986 | M39: 2023-12-01 | N39: 15:45:00 | O39: 13881 | P39: 1676 | Q39: 10641 | R39: 1152 | S39: -3240 | T39: 335.5 | U39: 0.9547595963 | V39: 6.183206107 | W39: 335.5 | Y39: 상승 | Z39: 337.75 | AA39: 성공 | AB39: -0.3200419727
B40: 2023-12-04 | C40: 15:35:00 | D40: 14822 | E40: 1997 | F40: 14749 | G40: 1800 | H40: -73 | I40: 336.7 | J40: 0.7717556891 | K40: 0.3705583756 | M40: 2023-12-04 | N40: 15:45:00 | O40: 12105 | P40: 1572 | Q40: 11318 | R40: 1157 | S40: -787 | T40: 336.7 | U40: 2.081813653 | V40: 1.896385542 | W40: 336.7 | Y40: 하락 | Z40: 337.05 | AA40: 성공 | AB40: 9.780821918
B41: 2023-12-05 | C41: 15:35:00 | D41: 15391 | E41: 2238 | F41: 10643 | G41: 1102 | H41: -4748 | I41: 332.65 | J41: 2.780772306 | K41: 4.179577465 | M41: 2023-12-05 | N41: 15:45:00 | O41: 14028 | P41: 1583 | Q41: 10041 | R41: 839 | S41: -3987 | T41: 332.65 | U41: 3.106163747 | V41: 5.358870968 | W41: 332.65 | Y41: 상승 | Z41: 334.15 | AA41: 성공 | AB41: -0.1602780118
B42: 2023-12-06 | C42: 15:35:00 | D42: 13958 | E42: 1907 | F42: 15189 | G42: 1516 | H42: 1231 | I42: 333.9 | J42: 2.699779524 | K42: -3.148337596 | M42: 2023-12-06 | N42: 15:45:00 | O42: 12316 | P42: 1381 | Q42: 11653 | R42: 1107 | S42: -663 | T42: 333.5 | U42: 1.608473364 | V42: 2.419708029 | W42: 333.5 | Y42: 하락 | Z42: 333.8 | AA42: =IF(AND(Y41="상승",Z42>W41),"성공",IF(AND(Y41="하락",Z42<W41),"성공",IF(AND(Y41="상승",Z42=W41),"동일가",IF(AND(Y41="하락",Z42=W41),"동일가","실패")))) -> 성공 | AB42: =S42/H42-1 -> -1.538586515
B43: 2023-12-07 | C43: 15:35:00 | D43: 12299 | E43: 1489 | F43: 15158 | G43: 1957 | H43: 2859 | I43: 333 | J43: -0.5143771064 | K43: 6.108974359 | M43: 2023-12-07 | N43: 15:45:00 | O43: 11173 | P43: 1117 | Q43: 12060 | R43: 1519 | S43: 887 | T43: 332.4 | U43: -2.063251927 | V43: 2.206467662 | W43: 332.4 | Y43: =IF(H43>S43,"하락","상승") -> 하락 | Z43: 331.8 | AA43: =IF(AND(Y42="상승",Z43>W42),"성공",IF(AND(Y42="하락",Z43<W42),"성공",IF(AND(Y42="상승",Z43=W42),"동일가",IF(AND(Y42="하락",Z43=W42),"동일가","실패")))) -> 성공 | AB43: =S43/H43-1 -> -0.6897516614
B44: 2023-12-08 | C44: 15:35:00 | D44: 11485 | E44: 1233 | F44: 17894 | G44: 2482 | H44: 6409 | I44: 337.2 | J44: -2.105171182 | K44: 5.131305044 | M44: 2023-12-08 | N44: 15:45:00 | O44: 12935 | P44: 1290 | Q44: 15739 | R44: 1812 | S44: 2804 | T44: 337.25 | U44: -1.341149443 | V44: 5.37164751 | W44: 337.25 | Y44: =IF(H44>S44,"하락","상승") -> 하락 | Z44: 334.8 | AA44: =IF(AND(Y43="상승",Z44>W43),"성공",IF(AND(Y43="하락",Z44<W43),"성공",IF(AND(Y43="상승",Z44=W43),"동일가",IF(AND(Y43="하락",Z44=W43),"동일가","실패")))) -> 실패 | AB44: =S44/H44-1 -> -0.5624902481
B45: 2023-12-11 | C45: 15:35:00 | D45: 13135 | E45: 1427 | F45: 17334 | G45: 2336 | H45: 4199 | I45: 338.3 | J45: -1.784248375 | K45: 4.619361936 | M45: 2023-12-11 | N45: 15:45:00 | O45: 11811 | P45: 1168 | Q45: 12822 | R45: 1447 | S45: 1011 | T45: 338.25 | U45: -1.25106562 | V45: 3.623655914 | W45: 338.25 | Y45: =IF(H45>S45,"하락","상승") -> 하락 | Z45: 338 | AA45: =IF(AND(Y44="상승",Z45>W44),"성공",IF(AND(Y44="하락",Z45<W44),"성공",IF(AND(Y44="상승",Z45=W44),"동일가",IF(AND(Y44="하락",Z45=W44),"동일가","실패")))) -> 실패 | AB45: =S45/H45-1 -> -0.7592283877
B46: 2023-12-12 | C46: 15:35:00 | D46: 12966 | E46: 1565 | F46: 15848 | G46: 1966 | H46: 2882 | I46: 340.45 | J46: -0.2239463857 | K46: 7.187032419 | M46: 2023-12-12 | N46: 15:45:00 | O46: 10545 | P46: 1314 | Q46: 11919 | R46: 1160 | S46: 1374 | T46: 340.5 | U46: 2.249885845 | V46: -8.922077922 | W46: 340.5 | Y46: =IF(H46>S46,"하락","상승") -> 하락 | Z46: 340.05 | AA46: =IF(AND(Y45="상승",Z46>W45),"성공",IF(AND(Y45="하락",Z46<W45),"성공",IF(AND(Y45="상승",Z46=W45),"동일가",IF(AND(Y45="하락",Z46=W45),"동일가","실패")))) -> 실패 | AB46: =S46/H46-1 -> -0.5232477446
B47: 2023-12-13 | C47: 15:35:00 | D47: 17299 | E47: 2207 | F47: 10286 | G47: 1128 | H47: -7013 | I47: 336.8 | J47: 1.280552369 | K47: 6.499536608 | M47: 2023-12-13 | N47: 15:45:00 | O47: 12052 | P47: 1597 | Q47: 7190 | R47: 824 | S47: -4862 | T47: 337 | U47: 1.179078187 | V47: 6.289780078 | W47: 337 | Y47: =IF(H47>S47,"하락","상승") -> 상승 | Z47: 340.95 | AA47: =IF(AND(Y46="상승",Z47>W46),"성공",IF(AND(Y46="하락",Z47<W46),"성공",IF(AND(Y46="상승",Z47=W46),"동일가",IF(AND(Y46="하락",Z47=W46),"동일가","실패")))) -> 실패 | AB47: =S47/H47-1 -> -0.3067160987
B48: 2023-12-14 | C48: 15:35:00 | D48: 5049 | E48: 498 | F48: 5005 | G48: 446 | H48: -44 | I48: 340.75 | J48: 1.083418877 | K48: 0.8461538462 | M48: 2023-12-14 | N48: 15:45:00 | O48: 5049 | P48: 498 | Q48: 5005 | R48: 446 | S48: -44 | T48: 340.75 | U48: 1.083418877 | V48: 0.8461538462 | W48: 340.75 | Y48: =IF(H48>S48,"하락","상승") -> 상승 | Z48: 341.25 | AA48: =IF(AND(Y47="상승",Z48>W47),"성공",IF(AND(Y47="하락",Z48<W47),"성공",IF(AND(Y47="상승",Z48=W47),"동일가",IF(AND(Y47="하락",Z48=W47),"동일가","실패")))) -> 성공 | AB48: =S48/H48-1 -> 0
B49: 2023-12-15 | C49: 15:35:00 | D49: 8978 | E49: 1586 | F49: 9221 | G49: 1561 | H49: 243 | I49: 343.55 | J49: 0.2463289853 | K49: -9.72 | M49: 2023-12-15 | N49: 15:45:00 | O49: 9208 | P49: 1301 | Q49: 8820 | R49: 1241 | S49: -388 | T49: 343.25 | U49: 0.02953904546 | V49: 6.466666667 | W49: 343.25 | Y49: =IF(H49>S49,"하락","상승") -> 하락 | Z49: 341.3 | AA49: =IF(AND(Y48="상승",Z49>W48),"성공",IF(AND(Y48="하락",Z49<W48),"성공",IF(AND(Y48="상승",Z49=W48),"동일가",IF(AND(Y48="하락",Z49=W48),"동일가","실패")))) -> 성공 | AB49: =S49/H49-1 -> -2.596707819
B50: 2023-12-18 | C50: 15:35:00 | D50: 9830 | E50: 1382 | F50: 15643 | G50: 2454 | H50: 5813 | I50: 344.45 | J50: -0.7383892567 | K50: 5.422574627 | M50: 2023-12-18 | N50: 15:45:00 | O50: 11057 | P50: 1290 | Q50: 14620 | R50: 1731 | S50: 3563 | T50: 344.45 | U50: -0.1253328497 | V50: 8.079365079 | W50: 344.45 | Y50: =IF(H50>S50,"하락","상승") -> 하락 | Z50: 343.25 | AA50: =IF(AND(Y49="상승",Z50>W49),"성공",IF(AND(Y49="하락",Z50<W49),"성공",IF(AND(Y49="상승",Z50=W49),"동일가",IF(AND(Y49="하락",Z50=W49),"동일가","실패")))) -> 동일가 | AB50: =S50/H50-1 -> -0.3870634784
B51: 2023-12-19 | C51: 15:35:00 | D51: 10399 | E51: 1156 | F51: 17760 | G51: 2782 | H51: 7361 | I51: 344.85 | J51: -2.611778263 | K51: 4.527060271 | M51: 2023-12-19 | N51: 15:45:00 | O51: 10003 | P51: 1016 | Q51: 12969 | R51: 1819 | S51: 2966 | T51: 344.75 | U51: -2.715730825 | V51: 3.693648817 | W51: 344.75 | Y51: =IF(H51>S51,"하락","상승") -> 하락 | Z51: 343.8 | AA51: =IF(AND(Y50="상승",Z51>W50),"성공",IF(AND(Y50="하락",Z51<W50),"성공",IF(AND(Y50="상승",Z51=W50),"동일가",IF(AND(Y50="하락",Z51=W50),"동일가","실패")))) -> 성공 | AB51: =S51/H51-1 -> -0.5970656161
B52: 2023-12-20 | C52: 15:35:00 | D52: 7000 | E52: 843 | F52: 21481 | G52: 3357 | H52: 14481 | I52: 351.6 | J52: -1.904809306 | K52: 5.760143198 | M52: 2023-12-20 | N52: 15:45:00 | O52: 9570 | P52: 1087 | Q52: 16511 | R52: 2078 | S52: 6941 | T52: 351.65 | U52: -0.8584270489 | V52: 7.004036327 | W52: 351.65 | Y52: =IF(H52>S52,"하락","상승") -> 하락 | Z52: 347.2 | AA52: =IF(AND(Y51="상승",Z52>W51),"성공",IF(AND(Y51="하락",Z52<W51),"성공",IF(AND(Y51="상승",Z52=W51),"동일가",IF(AND(Y51="하락",Z52=W51),"동일가","실패")))) -> 실패 | AB52: =S52/H52-1 -> -0.5206822733
B53: 2023-12-21 | C53: 15:35:00 | D53: 12381 | E53: 1602 | F53: 15853 | G53: 2227 | H53: 3472 | I53: 349.15 | J53: -0.6099192915 | K53: 5.5552 | M53: 2023-12-21 | N53: 15:45:00 | O53: 14127 | P53: 1274 | Q53: 15463 | R53: 1685 | S53: 1336 | T53: 348.9 | U53: -1.911842418 | V53: 3.250608273 | W53: 348.9 | Y53: =IF(H53>S53,"하락","상승") -> 하락 | Z53: 349 | AA53: =IF(AND(Y52="상승",Z53>W52),"성공",IF(AND(Y52="하락",Z53<W52),"성공",IF(AND(Y52="상승",Z53=W52),"동일가",IF(AND(Y52="하락",Z53=W52),"동일가","실패")))) -> 성공 | AB53: =S53/H53-1 -> -0.6152073733
B54: 2023-12-22 | C54: 15:35:00 | D54: 12991 | E54: 1972 | F54: 15796 | G54: 2085 | H54: 2805 | I54: 350.65 | J54: 0.9882909899 | K54: 24.82300885 | M54: 2023-12-22 | N54: 15:45:00 | O54: 11655 | P54: 1550 | Q54: 11624 | R54: 1290 | S54: -31 | T54: 350.7 | U54: 1.491497874 | V54: 0.1192307692 | W54: 350.7 | Y54: =IF(H54>S54,"하락","상승") -> 하락 | Z54: 351.45 | AA54: =IF(AND(Y53="상승",Z54>W53),"성공",IF(AND(Y53="하락",Z54<W53),"성공",IF(AND(Y53="상승",Z54=W53),"동일가",IF(AND(Y53="하락",Z54=W53),"동일가","실패")))) -> 실패 | AB54: =S54/H54-1 -> -1.011051693
B55: 2023-12-26 | C55: 15:35:00 | D55: 16475 | E55: 2183 | F55: 19682 | G55: 2988 | H55: 3207 | I55: 351.75 | J55: -0.9599390078 | K55: 3.983850932 | M55: 2023-12-26 | N55: 15:45:00 | O55: 12009 | P55: 1658 | Q55: 14016 | R55: 1527 | S55: 2007 | T55: 352 | U55: 1.94 | V55: -15.32 | W55: 352 | Y55: =IF(H55>S55,"하락","상승") -> 하락 | Z55: 352.45 | AA55: =IF(AND(Y54="상승",Z55>W54),"성공",IF(AND(Y54="하락",Z55<W54),"성공",IF(AND(Y54="상승",Z55=W54),"동일가",IF(AND(Y54="하락",Z55=W54),"동일가","실패")))) -> 실패 | AB55: =S55/H55-1 -> -0.374181478
B56: 2023-12-27 | C56: 15:35:00 | D56: 7706 | E56: 929 | F56: 19119 | G56: 2936 | H56: 11413 | I56: 356.1 | J56: -1.783019816 | K56: 5.686596911 | M56: 2023-12-27 | N56: 15:45:00 | O56: 11304 | P56: 867 | Q56: 15529 | R56: 2076 | S56: 4225 | T56: 355.9 | U56: -5.56 | V56: 3.49 | W56: 355.9 | Y56: =IF(H56>S56,"하락","상승") -> 하락 | Z56: 352.15 | AA56: =IF(AND(Y55="상승",Z56>W55),"성공",IF(AND(Y55="하락",Z56<W55),"성공",IF(AND(Y55="상승",Z56=W55),"동일가",IF(AND(Y55="하락",Z56=W55),"동일가","실패")))) -> 실패 | AB56: =S56/H56-1 -> -0.6298081136
B57: 2023-12-28 | C57: 15:35:00 | D57: 5072 | E57: 526 | F57: 23482 | G57: 3004 | H57: 18410 | I57: 362.3 | J57: -1.825674766 | K57: 7.429378531 | M57: 2023-12-28 | N57: 15:45:00 | O57: 11538 | P57: 812 | Q57: 22601 | R57: 2206 | S57: 11063 | T57: 362.7 | U57: -3.964119352 | V57: 7.93615495 | W57: 362.7 | Y57: =IF(H57>S57,"하락","상승") -> 하락 | Z57: 355.5 | AA57: =IF(AND(Y56="상승",Z57>W56),"성공",IF(AND(Y56="하락",Z57<W56),"성공",IF(AND(Y56="상승",Z57=W56),"동일가",IF(AND(Y56="하락",Z57=W56),"동일가","실패")))) -> 성공 | AB57: =S57/H57-1 -> -0.3990765888
B58: 2024-01-02 | C58: 15:35:00 | D58: 12796 | E58: 1579 | F58: 17048 | G58: 2869 | H58: 4252 | I58: 363.45 | J58: -2.161723086 | K58: 3.296124031 | M58: 2024-01-02 | N58: 15:45:00 | O58: 11588 | P58: 1326 | Q58: 15431 | R58: 2331 | S58: 3843 | T58: 363.8 | U58: -2.119159237 | V58: 3.823880597 | W58: 363.8 | Y58: =IF(H58>S58,"하락","상승") -> 하락 | Z58: 360.7 | AA58: =IF(AND(Y57="상승",Z58>W57),"성공",IF(AND(Y57="하락",Z58<W57),"성공",IF(AND(Y57="상승",Z58=W57),"동일가",IF(AND(Y57="하락",Z58=W57),"동일가","실패")))) -> 성공 | AB58: =S58/H58-1 -> -0.09619002822
B59: 2024-01-03 | C59: 15:35:00 | D59: 16680 | E59: 2912 | F59: 7392 | G59: 1069 | H59: -9288 | I59: 353.55 | J59: 1.186851736 | K59: 5.039609333 | M59: 2024-01-03 | N59: 15:45:00 | O59: 20999 | P59: 2023 | Q59: 15855 | R59: 1310 | S59: -5144 | T59: 353.6 | U59: 1.722924913 | V59: 7.214586255 | W59: 353.6 | Y59: =IF(H59>S59,"하락","상승") -> 상승 | Z59: 359.7 | AA59: =IF(AND(Y58="상승",Z59>W58),"성공",IF(AND(Y58="하락",Z59<W58),"성공",IF(AND(Y58="상승",Z59=W58),"동일가",IF(AND(Y58="하락",Z59=W58),"동일가","실패")))) -> 성공 | AB59: =S59/H59-1 -> -0.4461670973
B60: 2024-01-04 | C60: 15:35:00 | D60: 17439 | E60: 2513 | F60: 13205 | G60: 1961 | H60: -4234 | I60: 350.3 | J60: -0.2057052435 | K60: 7.670289855 | M60: 2024-01-04 | N60: 15:45:00 | O60: 15343 | P60: 1737 | Q60: 15163 | R60: 1698 | S60: -180 | T60: 350.3 | U60: 0.09687206935 | V60: 4.615384615 | W60: 350.3 | Y60: =IF(H60>S60,"하락","상승") -> 상승 | Z60: 350.2 | AA60: =IF(AND(Y59="상승",Z60>W59),"성공",IF(AND(Y59="하락",Z60<W59),"성공",IF(AND(Y59="상승",Z60=W59),"동일가",IF(AND(Y59="하락",Z60=W59),"동일가","실패")))) -> 실패 | AB60: =S60/H60-1 -> -0.9574870099
B61: 2024-01-05 | C61: 15:35:00 | D61: 14354 | E61: 2580 | F61: 11594 | G61: 1853 | H61: -2760 | I61: 348.85 | J61: 0.6933148425 | K61: 3.796423659 | M61: 2024-01-05 | N61: 15:45:00 | O61: 13234 | P61: 1848 | Q61: 11795 | R61: 1524 | S61: -1439 | T61: 348.7 | U61: 0.5782459011 | V61: 4.441358025 | W61: 348.7 | Y61: =IF(H61>S61,"하락","상승") -> 상승 | Z61: 349.35 | AA61: =IF(AND(Y60="상승",Z61>W60),"성공",IF(AND(Y60="하락",Z61<W60),"성공",IF(AND(Y60="상승",Z61=W60),"동일가",IF(AND(Y60="하락",Z61=W60),"동일가","실패")))) -> 실패 | AB61: =S61/H61-1 -> -0.4786231884
B62: 2024-01-08 | C62: 15:35:00 | D62: 17709 | E62: 3057 | F62: 11569 | G62: 1466 | H62: -6140 | I62: 347.55 | J62: 2.098607361 | K62: 3.859208045 | M62: 2024-01-08 | N62: 15:45:00 | O62: 12577 | P62: 2133 | Q62: 8725 | R62: 1126 | S62: -3852 | T62: 347.4 | U62: 1.85227779 | V62: 3.825223436 | W62: 347.4 | Y62: =IF(H62>S62,"하락","상승") -> 상승 | Z62: 350.35 | AA62: =IF(AND(Y61="상승",Z62>W61),"성공",IF(AND(Y61="하락",Z62<W61),"성공",IF(AND(Y61="상승",Z62=W61),"동일가",IF(AND(Y61="하락",Z62=W61),"동일가","실패")))) -> 성공 | AB62: =S62/H62-1 -> -0.3726384365
B63: 2024-01-09 | C63: 15:35:00 | D63: 19016 | E63: 3364 | F63: 9723 | G63: 1185 | H63: -9293 | I63: 346.35 | J63: 2.552268999 | K63: 4.264800367 | M63: 2024-01-09 | N63: 15:45:00 | O63: 13890 | P63: 2204 | Q63: 9402 | R63: 1003 | S63: -4488 | T63: 346.3 | U63: 3.071700506 | V63: 3.736885928 | W63: 346.3 | Y63: =IF(H63>S63,"하락","상승") -> 상승 | Z63: 351.4 | AA63: =IF(AND(Y62="상승",Z63>W62),"성공",IF(AND(Y62="하락",Z63<W62),"성공",IF(AND(Y62="상승",Z63=W62),"동일가",IF(AND(Y62="하락",Z63=W62),"동일가","실패")))) -> 성공 | AB63: =S63/H63-1 -> -0.5170558485
B64: 2024-01-10 | C64: 15:35:00 | D64: 17124 | E64: 2561 | F64: 12748 | G64: 1491 | H64: -4376 | I64: 342.7 | J64: 1.86351586 | K64: 4.089719626 | M64: 2024-01-10 | N64: 15:45:00 | O64: 12851 | P64: 1696 | Q64: 9982 | R64: 1115 | S64: -2869 | T64: 342.7 | U64: 1.375225802 | V64: 4.938037866 | W64: 342.7 | Y64: =IF(H64>S64,"하락","상승") -> 상승 | Z64: 345.35 | AA64: =IF(AND(Y63="상승",Z64>W63),"성공",IF(AND(Y63="하락",Z64<W63),"성공",IF(AND(Y63="상승",Z64=W63),"동일가",IF(AND(Y63="하락",Z64=W63),"동일가","실패")))) -> 실패 | AB64: =S64/H64-1 -> -0.3443784278
B65: 2024-01-11 | C65: 15:35:00 | D65: 12642 | E65: 1650 | F65: 15502 | G65: 2211 | H65: 2860 | I65: 343.55 | J65: -0.650511081 | K65: 5.098039216 | M65: 2024-01-11 | N65: 15:45:00 | O65: 11614 | P65: 1321 | Q65: 12143 | R65: 1494 | S65: 529 | T65: 343.55 | U65: -0.6639796633 | V65: 3.057803468 | W65: 343.55 | Y65: =IF(H65>S65,"하락","상승") -> 하락 | Z65: 344.45 | AA65: =IF(AND(Y64="상승",Z65>W64),"성공",IF(AND(Y64="하락",Z65<W64),"성공",IF(AND(Y64="상승",Z65=W64),"동일가",IF(AND(Y64="하락",Z65=W64),"동일가","실패")))) -> 성공 | AB65: =S65/H65-1 -> -0.815034965
B66: 2024-01-12 | C66: 15:35:00 | D66: 13696 | E66: 1883 | F66: 10336 | G66: 1233 | H66: -3360 | I66: 339.75 | J66: 1.109306429 | K66: 5.169230769 | M66: 2024-01-12 | N66: 15:45:00 | O66: 12564 | P66: 1475 | Q66: 10811 | R66: 1115 | S66: -1753 | T66: 340 | U66: 1.177998024 | V66: 4.869444444 | W66: 340 | Y66: =IF(H66>S66,"하락","상승") -> 상승 | Z66: 341.5 | AA66: =IF(AND(Y65="상승",Z66>W65),"성공",IF(AND(Y65="하락",Z66<W65),"성공",IF(AND(Y65="상승",Z66=W65),"동일가",IF(AND(Y65="하락",Z66=W65),"동일가","실패")))) -> 성공 | AB66: =S66/H66-1 -> -0.4782738095
B67: 2024-01-15 | C67: 15:35:00 | D67: 13174 | E67: 1907 | F67: 14904 | G67: 2091 | H67: 1730 | I67: 341.2 | J67: 0.219457274 | K67: 9.402173913 | M67: 2024-01-15 | N67: 15:45:00 | O67: 11622 | P67: 1409 | Q67: 12901 | R67: 1539 | S67: 1279 | T67: 341.3 | U67: 0.1343129266 | V67: 9.838461538 | W67: 341.3 | Y67: =IF(H67>S67,"하락","상승") -> 하락 | Z67: 340 | AA67: =IF(AND(Y66="상승",Z67>W66),"성공",IF(AND(Y66="하락",Z67<W66),"성공",IF(AND(Y66="상승",Z67=W66),"동일가",IF(AND(Y66="하락",Z67=W66),"동일가","실패")))) -> 동일가 | AB67: =S67/H67-1 -> -0.2606936416
B68: 2024-01-16 | C68: 15:35:00 | D68: 18119 | E68: 2800 | F68: 9431 | G68: 1346 | H68: -8688 | I68: 335.95 | J68: 0.5356150499 | K68: 5.975240715 | M68: 2024-01-16 | N68: 15:45:00 | O68: 15167 | P68: 1780 | Q68: 9652 | R68: 1187 | S68: -5515 | T68: 336 | U68: -0.3893627595 | V68: 9.300168634 | W68: 336 | Y68: =IF(H68>S68,"하락","상승") -> 상승 | Z68: 339.55 | AA68: =IF(AND(Y67="상승",Z68>W67),"성공",IF(AND(Y67="하락",Z68<W67),"성공",IF(AND(Y67="상승",Z68=W67),"동일가",IF(AND(Y67="하락",Z68=W67),"동일가","실패")))) -> 성공 | AB68: =S68/H68-1 -> -0.3652163904
B69: 2024-01-17 | C69: 15:35:00 | D69: 20456 | E69: 3377 | F69: 7876 | G69: 1093 | H69: -12580 | I69: 327.45 | J69: 1.148408005 | K69: 5.507880911 | M69: 2024-01-17 | N69: 15:45:00 | O69: 20144 | P69: 2289 | Q69: 12625 | R69: 1209 | S69: -7519 | T69: 327.3 | U69: 1.642164977 | V69: 6.962037037 | W69: 327.3 | Y69: =IF(H69>S69,"하락","상승") -> 상승 | Z69: 336.45 | AA69: =IF(AND(Y68="상승",Z69>W68),"성공",IF(AND(Y68="하락",Z69<W68),"성공",IF(AND(Y68="상승",Z69=W68),"동일가",IF(AND(Y68="하락",Z69=W68),"동일가","실패")))) -> 성공 | AB69: =S69/H69-1 -> -0.4023052464
B70: 2024-01-18 | C70: 15:35:00 | D70: 12717 | E70: 1856 | F70: 16598 | G70: 2286 | H70: 3881 | I70: 329.05 | J70: 0.4088855138 | K70: 9.025581395 | M70: 2024-01-18 | N70: 15:45:00 | O70: 16931 | P70: 1471 | Q70: 16848 | R70: 1374 | S70: -83 | T70: 329.1 | U70: 0.7521514937 | V70: 0.8556701031 | W70: 329.1 | Y70: =IF(H70>S70,"하락","상승") -> 하락 | Z70: 328.7 | AA70: =IF(AND(Y69="상승",Z70>W69),"성공",IF(AND(Y69="하락",Z70<W69),"성공",IF(AND(Y69="상승",Z70=W69),"동일가",IF(AND(Y69="하락",Z70=W69),"동일가","실패")))) -> 성공 | AB70: =S70/H70-1 -> -1.021386241
B71: 2024-01-19 | C71: 15:35:00 | D71: 11598 | E71: 1739 | F71: 16362 | G71: 2379 | H71: 4764 | I71: 333.95 | J71: 0.2083294961 | K71: 7.44375 | M71: 2024-01-19 | N71: 15:45:00 | O71: 15843 | P71: 1619 | Q71: 14448 | R71: 1527 | S71: -1395 | T71: 333.65 | U71: -0.3239805793 | V71: 15.16304348 | W71: 333.65 | Y71: =IF(H71>S71,"하락","상승") -> 하락 | Z71: 333 | AA71: =IF(AND(Y70="상승",Z71>W70),"성공",IF(AND(Y70="하락",Z71<W70),"성공",IF(AND(Y70="상승",Z71=W70),"동일가",IF(AND(Y70="하락",Z71=W70),"동일가","실패")))) -> 실패 | AB71: =S71/H71-1 -> -1.292821159
B72: 2024-01-22 | C72: 15:35:00 | D72: 15935 | E72: 2677 | F72: 11638 | G72: 1703 | H72: -4297 | I72: 334.65 | J72: 0.8812638314 | K72: 4.411704312 | M72: 2024-01-22 | N72: 15:45:00 | O72: 13415 | P72: 1864 | Q72: 10143 | R72: 1270 | S72: -3272 | T72: 334.5 | U72: 0.7897257612 | V72: 5.508417508 | W72: 334.5 | Y72: =IF(H72>S72,"하락","상승") -> 상승 | Z72: 337.05 | AA72: =IF(AND(Y71="상승",Z72>W71),"성공",IF(AND(Y71="하락",Z72<W71),"성공",IF(AND(Y71="상승",Z72=W71),"동일가",IF(AND(Y71="하락",Z72=W71),"동일가","실패")))) -> 실패 | AB72: =S72/H72-1 -> -0.2385385152
B73: 2024-01-23 | C73: 15:35:00 | D73: 12427 | E73: 1736 | F73: 17048 | G73: 2830 | H73: 4621 | I73: 336.25 | J73: -1.13438187 | K73: 4.223948812 | M73: 2024-01-23 | N73: 15:45:00 | O73: 12771 | P73: 1407 | Q73: 13016 | R73: 1642 | S73: 245 | T73: 336.45 | U73: -1.14984067 | V73: 1.042553191 | W73: 336.45 | Y73: =IF(H73>S73,"하락","상승") -> 하락 | Z73: 334 | AA73: =IF(AND(Y72="상승",Z73>W72),"성공",IF(AND(Y72="하락",Z73<W72),"성공",IF(AND(Y72="상승",Z73=W72),"동일가",IF(AND(Y72="하락",Z73=W72),"동일가","실패")))) -> 실패 | AB73: =S73/H73-1 -> -0.9469811729
B74: 2024-01-24 | C74: 15:35:00 | D74: 16209 | E74: 2415 | F74: 11797 | G74: 1977 | H74: -4412 | I74: 334.55 | J74: -0.7446793404 | K74: 10.07305936 | M74: 2024-01-24 | N74: 15:45:00 | O74: 14707 | P74: 1725 | Q74: 11843 | R74: 1391 | S74: -2864 | T74: 334.85 | U74: -0.01177840986 | V74: 8.574850299 | W74: 334.85 | Y74: =IF(H74>S74,"하락","상승") -> 상승 | Z74: 337.1 | AA74: =IF(AND(Y73="상승",Z74>W73),"성공",IF(AND(Y73="하락",Z74<W73),"성공",IF(AND(Y73="상승",Z74=W73),"동일가",IF(AND(Y73="하락",Z74=W73),"동일가","실패")))) -> 실패 | AB74: =S74/H74-1 -> -0.3508612874
B75: 2024-01-25 | C75: 15:35:00 | D75: 15233 | E75: 2064 | F75: 12770 | G75: 1775 | H75: -2463 | I75: 335.05 | J75: -0.1859632602 | K75: 8.522491349 | M75: 2024-01-25 | N75: 15:45:00 | O75: 12771 | P75: 1571 | Q75: 11063 | R75: 1221 | S75: -1708 | T75: 335.05 | U75: 0.9313890014 | V75: 4.88 | W75: 335.05 | Y75: =IF(H75>S75,"하락","상승") -> 상승 | Z75: 334.7 | AA75: =IF(AND(Y74="상승",Z75>W74),"성공",IF(AND(Y74="하락",Z75<W74),"성공",IF(AND(Y74="상승",Z75=W74),"동일가",IF(AND(Y74="하락",Z75=W74),"동일가","실패")))) -> 실패 | AB75: =S75/H75-1 -> -0.3065367438
B76: 2024-01-26 | C76: 15:35:00 | D76: 12405 | E76: 1853 | F76: 13547 | G76: 1589 | H76: 1142 | I76: 335.25 | J76: 1.830938349 | K76: -4.325757576 | M76: 2024-01-26 | N76: 15:45:00 | O76: 10580 | P76: 1559 | Q76: 10032 | R76: 1087 | S76: -548 | T76: 335.15 | U76: 2.442669298 | V76: 1.161016949 | W76: 335.15 | Y76: =IF(H76>S76,"하락","상승") -> 하락 | Z76: 333.5 | AA76: =IF(AND(Y75="상승",Z76>W75),"성공",IF(AND(Y75="하락",Z76<W75),"성공",IF(AND(Y75="상승",Z76=W75),"동일가",IF(AND(Y75="하락",Z76=W75),"동일가","실패")))) -> 실패 | AB76: =S76/H76-1 -> -1.479859895
B77: 2024-01-29 | C77: 15:35:00 | D77: 10558 | E77: 1575 | F77: 14722 | G77: 2093 | H77: 4164 | I77: 339.3 | J77: 0.3304305356 | K77: 8.038610039 | M77: 2024-01-29 | N77: 15:45:00 | O77: 10461 | P77: 1290 | Q77: 13092 | R77: 1547 | S77: 2631 | T77: 339.25 | U77: 0.3535289608 | V77: 10.23735409 | W77: 339.25 | Y77: =IF(H77>S77,"하락","상승") -> 하락 | Z77: 336.25 | AA77: =IF(AND(Y76="상승",Z77>W76),"성공",IF(AND(Y76="하락",Z77<W76),"성공",IF(AND(Y76="상승",Z77=W76),"동일가",IF(AND(Y76="하락",Z77=W76),"동일가","실패")))) -> 실패 | AB77: =S77/H77-1 -> -0.3681556196
B78: 2024-01-30 | C78: 15:35:00 | D78: 16259 | E78: 2699 | F78: 12904 | G78: 1708 | H78: -3355 | I78: 338.45 | J78: 1.530952135 | K78: 3.385469223 | M78: 2024-01-30 | N78: 15:45:00 | O78: 13936 | P78: 1814 | Q78: 11352 | R78: 1029 | S78: -2584 | T78: 338.7 | U78: 3.349600291 | V78: 3.291719745 | W78: 338.7 | Y78: =IF(H78>S78,"하락","상승") -> 상승 | Z78: 340.55 | AA78: =IF(AND(Y77="상승",Z78>W77),"성공",IF(AND(Y77="하락",Z78<W77),"성공",IF(AND(Y77="상승",Z78=W77),"동일가",IF(AND(Y77="하락",Z78=W77),"동일가","실패")))) -> 실패 | AB78: =S78/H78-1 -> -0.2298062593
B79: 2024-01-31 | C79: 15:35:00 | D79: 13924 | E79: 2056 | F79: 12018 | G79: 1847 | H79: -1906 | I79: 336.6 | J79: -0.2656058094 | K79: 9.119617225 | M79: 2024-01-31 | N79: 15:45:00 | O79: 11431 | P79: 1485 | Q79: 12145 | R79: 1349 | S79: 714 | T79: 337 | U79: 1.305322062 | V79: -5.25 | W79: 337 | Y79: =IF(H79>S79,"하락","상승") -> 상승 | Z79: 335.15 | AA79: =IF(AND(Y78="상승",Z79>W78),"성공",IF(AND(Y78="하락",Z79<W78),"성공",IF(AND(Y78="상승",Z79=W78),"동일가",IF(AND(Y78="하락",Z79=W78),"동일가","실패")))) -> 실패 | AB79: =S79/H79-1 -> -1.374606506
B80: 2024-02-01 | C80: 15:35:00 | D80: 8275 | E80: 1652 | F80: 21310 | G80: 3493 | H80: 13035 | I80: 342.1 | J80: 1.091693071 | K80: 7.080391092 | M80: 2024-02-01 | N80: 15:45:00 | O80: 10134 | P80: 1589 | Q80: 16020 | R80: 1895 | S80: 5886 | T80: 342.15 | U80: 2.076229885 | V80: 19.23529412 | W80: 342.15 | Y80: =IF(H80>S80,"하락","상승") -> 하락 | Z80: 335.8 | AA80: =IF(AND(Y79="상승",Z80>W79),"성공",IF(AND(Y79="하락",Z80<W79),"성공",IF(AND(Y79="상승",Z80=W79),"동일가",IF(AND(Y79="하락",Z80=W79),"동일가","실패")))) -> 실패 | AB80: =S80/H80-1 -> -0.5484464902
B81: 2024-02-02 | C81: 15:35:00 | D81: 5803 | E81: 1006 | F81: 16843 | G81: 2825 | H81: 11040 | I81: 354.1 | J81: 0.1937342318 | K81: 6.069268829 | M81: 2024-02-02 | N81: 15:45:00 | O81: 10755 | P81: 1041 | Q81: 16761 | R81: 1949 | S81: 6006 | T81: 354.05 | U81: -1.731617337 | V81: 6.614537445 | W81: 354.05 | Y81: =IF(H81>S81,"하락","상승") -> 하락 | Z81: 344.6 | AA81: =IF(AND(Y80="상승",Z81>W80),"성공",IF(AND(Y80="하락",Z81<W80),"성공",IF(AND(Y80="상승",Z81=W80),"동일가",IF(AND(Y80="하락",Z81=W80),"동일가","실패")))) -> 실패 | AB81: =S81/H81-1 -> -0.4559782609
B82: 2024-02-05 | C82: 15:35:00 | D82: 12971 | E82: 2085 | F82: 15924 | G82: 2826 | H82: 2953 | I82: 349.3 | J82: -0.5862835846 | K82: 3.985155196 | M82: 2024-02-05 | N82: 15:45:00 | O82: 14780 | P82: 1387 | Q82: 13487 | R82: 1970 | S82: -1293 | T82: 349.25 | U82: -3.809899392 | V82: -2.217838765 | W82: 349.25 | Y82: =IF(H82>S82,"하락","상승") -> 하락 | Z82: 353.7 | AA82: =IF(AND(Y81="상승",Z82>W81),"성공",IF(AND(Y81="하락",Z82<W81),"성공",IF(AND(Y81="상승",Z82=W81),"동일가",IF(AND(Y81="하락",Z82=W81),"동일가","실패")))) -> 성공 | AB82: =S82/H82-1 -> -1.437859804
B83: 2024-02-06 | C83: 15:35:00 | D83: 13819 | E83: 2079 | F83: 13514 | G83: 2243 | H83: -305 | I83: 347.75 | J83: -0.6219790843 | K83: -1.859756098 | M83: 2024-02-06 | N83: 15:45:00 | O83: 13001 | P83: 1440 | Q83: 11686 | R83: 1395 | S83: -1315 | T83: 348.05 | U83: -0.6514112903 | V83: 29.22222222 | W83: 348.05 | Y83: =IF(H83>S83,"하락","상승") -> 하락 | Z83: 348.05 | AA83: =IF(AND(Y82="상승",Z83>W82),"성공",IF(AND(Y82="하락",Z83<W82),"성공",IF(AND(Y82="상승",Z83=W82),"동일가",IF(AND(Y82="하락",Z83=W82),"동일가","실패")))) -> 성공 | AB83: =S83/H83-1 -> 3.31147541
B84: 2024-02-07 | C84: 15:35:00 | D84: 9476 | E84: 1840 | F84: 18054 | G84: 2720 | H84: 8578 | I84: 352.55 | J84: 1.4875 | K84: 9.747727273 | M84: 2024-02-07 | N84: 15:45:00 | O84: 11445 | P84: 1427 | Q84: 15002 | R84: 1376 | S84: 3557 | T84: 352.7 | U84: 2.882293924 | V84: -69.74509804 | W84: 352.7 | Y84: =IF(H84>S84,"하락","상승") -> 하락 | Z84: 349.75 | AA84: =IF(AND(Y83="상승",Z84>W83),"성공",IF(AND(Y83="하락",Z84<W83),"성공",IF(AND(Y83="상승",Z84=W83),"동일가",IF(AND(Y83="하락",Z84=W83),"동일가","실패")))) -> 실패 | AB84: =S84/H84-1 -> -0.5853345768
B85: 2024-02-08 | C85: 15:35:00 | D85: 11809 | E85: 1843 | F85: 10389 | G85: 1450 | H85: -1420 | I85: 353.4 | J85: 0.7573397946 | K85: 3.613231552 | M85: 2024-02-08 | N85: 15:45:00 | O85: 11679 | P85: 1437 | Q85: 10798 | R85: 1096 | S85: -881 | T85: 353.4 | U85: 1.724841138 | V85: 2.583577713 | W85: 353.4 | Y85: =IF(H85>S85,"하락","상승") -> 상승 | Z85: 355.1 | AA85: =IF(AND(Y84="상승",Z85>W84),"성공",IF(AND(Y84="하락",Z85<W84),"성공",IF(AND(Y84="상승",Z85=W84),"동일가",IF(AND(Y84="하락",Z85=W84),"동일가","실패")))) -> 실패 | AB85: =S85/H85-1 -> -0.3795774648
B86: 2024-02-13 | C86: 15:35:00 | D86: 10070 | E86: 1986 | F86: 13745 | G86: 1912 | H86: 3675 | I86: 357.25 | J86: 2.118314077 | K86: -49.66216216 | M86: 2024-02-13 | N86: 15:45:00 | O86: 10332 | P86: 1695 | Q86: 9830 | R86: 1246 | S86: -502 | T86: 357.25 | U86: 1.793670365 | V86: 1.118040089 | W86: 357.25 | Y86: =IF(H86>S86,"하락","상승") -> 하락 | Z86: 355.55 | AA86: =IF(AND(Y85="상승",Z86>W85),"성공",IF(AND(Y85="하락",Z86<W85),"성공",IF(AND(Y85="상승",Z86=W85),"동일가",IF(AND(Y85="하락",Z86=W85),"동일가","실패")))) -> 성공 | AB86: =S86/H86-1 -> -1.136598639
B87: 2024-02-14 | C87: 15:35:00 | D87: 11116 | E87: 1753 | F87: 14571 | G87: 2402 | H87: 3455 | I87: 352.35 | J87: -0.2749346547 | K87: 5.32357473 | M87: 2024-02-14 | N87: 15:45:00 | O87: 11293 | P87: 1303 | Q87: 11292 | R87: 1389 | S87: -1 | T87: 352.5 | U87: -0.5373328537 | V87: -0.01162790698 | W87: 352.5 | Y87: =IF(H87>S87,"하락","상승") -> 하락 | Z87: 352 | AA87: =IF(AND(Y86="상승",Z87>W86),"성공",IF(AND(Y86="하락",Z87<W86),"성공",IF(AND(Y86="상승",Z87=W86),"동일가",IF(AND(Y86="하락",Z87=W86),"동일가","실패")))) -> 성공 | AB87: =S87/H87-1 -> -1.000289436
B88: 2024-02-15 | C88: 15:35:00 | D88: 13721 | E88: 2342 | F88: 8919 | G88: 1280 | H88: -4802 | I88: 352.2 | J88: 1.109300945 | K88: 4.52165725 | M88: 2024-02-15 | N88: 15:45:00 | O88: 11746 | P88: 1715 | Q88: 10240 | R88: 1046 | S88: -1506 | T88: 352.15 | U88: 2.94069536 | V88: 2.251121076 | W88: 352.15 | Y88: =IF(H88>S88,"하락","상승") -> 상승 | Z88: 355.65 | AA88: =IF(AND(Y87="상승",Z88>W87),"성공",IF(AND(Y87="하락",Z88<W87),"성공",IF(AND(Y87="상승",Z88=W87),"동일가",IF(AND(Y87="하락",Z88=W87),"동일가","실패")))) -> 실패 | AB88: =S88/H88-1 -> -0.6863806747
B89: 2024-02-16 | C89: 15:35:00 | D89: 10043 | E89: 1533 | F89: 18002 | G89: 2913 | H89: 7959 | I89: 355.5 | J89: -0.3713235022 | K89: 5.767391304 | M89: 2024-02-16 | N89: 15:45:00 | O89: 12635 | P89: 1418 | Q89: 11878 | R89: 1323 | S89: -757 | T89: 355.8 | U89: 0.06764288539 | V89: 7.968421053 | W89: 355.8 | Y89: =IF(H89>S89,"하락","상승") -> 하락 | Z89: 354.3 | AA89: =IF(AND(Y88="상승",Z89>W88),"성공",IF(AND(Y88="하락",Z89<W88),"성공",IF(AND(Y88="상승",Z89=W88),"동일가",IF(AND(Y88="하락",Z89=W88),"동일가","실패")))) -> 성공 | AB89: =S89/H89-1 -> -1.095112451
B90: 2024-02-19 | C90: 15:35:00 | D90: 5552 | E90: 1093 | F90: 17583 | G90: 2826 | H90: 12031 | I90: 361.1 | J90: 1.142270927 | K90: 6.942296595 | M90: 2024-02-19 | N90: 15:45:00 | O90: 11748 | P90: 1199 | Q90: 14992 | R90: 1607 | S90: 3244 | T90: 361.1 | U90: -0.4689803212 | V90: 7.950980392 | W90: 361.1 | Y90: =IF(H90>S90,"하락","상승") -> 하락 | Z90: 355.3 | AA90: =IF(AND(Y89="상승",Z90>W89),"성공",IF(AND(Y89="하락",Z90<W89),"성공",IF(AND(Y89="상승",Z90=W89),"동일가",IF(AND(Y89="하락",Z90=W89),"동일가","실패")))) -> 성공 | AB90: =S90/H90-1 -> -0.7303632283
B91: 2024-02-20 | C91: 15:35:00 | D91: 14097 | E91: 2112 | F91: 9301 | G91: 1621 | H91: -4796 | I91: 356.65 | J91: -0.9368997462 | K91: 9.767820774 | M91: 2024-02-20 | N91: 15:45:00 | O91: 15272 | P91: 1509 | Q91: 13234 | R91: 1304 | S91: -2038 | T91: 356.65 | U91: 0.02816333085 | V91: 9.941463415 | W91: 356.65 | Y91: =IF(H91>S91,"하락","상승") -> 상승 | Z91: 360.3 | AA91: =IF(AND(Y90="상승",Z91>W90),"성공",IF(AND(Y90="하락",Z91<W90),"성공",IF(AND(Y90="상승",Z91=W90),"동일가",IF(AND(Y90="하락",Z91=W90),"동일가","실패")))) -> 성공 | AB91: =S91/H91-1 -> -0.5750625521
B92: 2024-02-21 | C92: 15:35:00 | D92: 9357 | E92: 1928 | F92: 8330 | G92: 1529 | H92: -1027 | I92: 355.9 | J92: 0.5947894645 | K92: 2.573934837 | M92: 2024-02-21 | N92: 15:45:00 | O92: 9526 | P92: 1413 | Q92: 8726 | R92: 1089 | S92: -800 | T92: 355.95 | U92: 1.271171472 | V92: 2.469135802 | W92: 355.95 | Y92: =IF(H92>S92,"하락","상승") -> 상승 | Z92: 357.05 | AA92: =IF(AND(Y91="상승",Z92>W91),"성공",IF(AND(Y91="하락",Z92<W91),"성공",IF(AND(Y91="상승",Z92=W91),"동일가",IF(AND(Y91="하락",Z92=W91),"동일가","실패")))) -> 성공 | AB92: =S92/H92-1 -> -0.2210321324
B93: 2024-02-22 | C93: 15:35:00 | D93: 10513 | E93: 1842 | F93: 13434 | G93: 2260 | H93: 2921 | I93: 357.7 | J93: 0.2368645086 | K93: 6.988038278 | M93: 2024-02-22 | N93: 15:45:00 | O93: 11048 | P93: 1506 | Q93: 10146 | R93: 1350 | S93: -902 | T93: 357.9 | U93: 0.1795661797 | V93: 5.782051282 | W93: 357.9 | Y93: =IF(H93>S93,"하락","상승") -> 하락 | Z93: 360 | AA93: =IF(AND(Y92="상승",Z93>W92),"성공",IF(AND(Y92="하락",Z93<W92),"성공",IF(AND(Y92="상승",Z93=W92),"동일가",IF(AND(Y92="하락",Z93=W92),"동일가","실패")))) -> 성공 | AB93: =S93/H93-1 -> -1.308798357
B94: 2024-02-23 | C94: 15:35:00 | D94: 10153 | E94: 2006 | F94: 8203 | G94: 1284 | H94: -1950 | I94: 359.05 | J94: 1.327313232 | K94: 2.700831025 | M94: 2024-02-23 | N94: 15:45:00 | O94: 11670 | P94: 1726 | Q94: 10155 | R94: 1040 | S94: -1515 | T94: 359.05 | U94: 3.003125279 | V94: 2.20845481 | W94: 359.05 | Y94: =IF(H94>S94,"하락","상승") -> 상승 | Z94: 360.4 | AA94: =IF(AND(Y93="상승",Z94>W93),"성공",IF(AND(Y93="하락",Z94<W93),"성공",IF(AND(Y93="상승",Z94=W93),"동일가",IF(AND(Y93="하락",Z94=W93),"동일가","실패")))) -> 실패 | AB94: =S94/H94-1 -> -0.2230769231
B95: 2024-02-26 | C95: 15:35:00 | D95: 7018 | E95: 1464 | F95: 6646 | G95: 1275 | H95: -372 | I95: 355.4 | J95: 0.4188331726 | K95: 1.968253968 | M95: 2024-02-26 | N95: 15:45:00 | O95: 11804 | P95: 1500 | Q95: 11564 | R95: 1364 | S95: -240 | T95: 355.25 | U95: 0.6086725318 | V95: 1.764705882 | W95: 355.25 | Y95: =IF(H95>S95,"하락","상승") -> 상승 | Z95: 359.25 | AA95: =IF(AND(Y94="상승",Z95>W94),"성공",IF(AND(Y94="하락",Z95<W94),"성공",IF(AND(Y94="상승",Z95=W94),"동일가",IF(AND(Y94="하락",Z95=W94),"동일가","실패")))) -> 성공 | AB95: =S95/H95-1 -> -0.3548387097
B96: 2024-02-27 | C96: 15:35:00 | D96: 10749 | E96: 2285 | F96: 5634 | G96: 855 | H96: -5115 | I96: 352.65 | J96: 1.885316135 | K96: 3.576923077 | M96: 2024-02-27 | N96: 15:45:00 | O96: 11871 | P96: 2051 | Q96: 7760 | R96: 879 | S96: -4111 | T96: 352.6 | U96: 3.040305542 | V96: 3.507679181 | W96: 352.6 | Y96: =IF(H96>S96,"하락","상승") -> 상승 | Z96: 356.45 | AA96: =IF(AND(Y95="상승",Z96>W95),"성공",IF(AND(Y95="하락",Z96<W95),"성공",IF(AND(Y95="상승",Z96=W95),"동일가",IF(AND(Y95="하락",Z96=W95),"동일가","실패")))) -> 성공 | AB96: =S96/H96-1 -> -0.196285435
B97: 2024-02-28 | C97: 15:35:00 | D97: 5482 | E97: 1047 | F97: 9526 | G97: 2014 | H97: 4044 | I97: 357.2 | J97: -0.5060213652 | K97: 4.182006205 | M97: 2024-02-28 | N97: 15:45:00 | O97: 11057 | P97: 1241 | Q97: 13695 | R97: 1738 | S97: 2638 | T97: 357.2 | U97: -1.030003366 | V97: 5.307847082 | W97: 357.2 | Y97: =IF(H97>S97,"하락","상승") -> 하락 | Z97: 353.9 | AA97: =IF(AND(Y96="상승",Z97>W96),"성공",IF(AND(Y96="하락",Z97<W96),"성공",IF(AND(Y96="상승",Z97=W96),"동일가",IF(AND(Y96="하락",Z97=W96),"동일가","실패")))) -> 성공 | AB97: =S97/H97-1 -> -0.3476755687
B98: 2024-02-29 | C98: 15:35:00 | D98: 6274 | E98: 1205 | F98: 8584 | G98: 1615 | H98: 2310 | I98: 355.4 | J98: 0.1085312745 | K98: 5.634146341 | M98: 2024-02-29 | N98: 15:45:00 | O98: 12051 | P98: 1262 | Q98: 12769 | R98: 1211 | S98: 718 | T98: 355.75 | U98: 0.9950499973 | V98: -14.07843137 | W98: 355.75 | Y98: =IF(H98>S98,"하락","상승") -> 하락 | Z98: 355.6 | AA98: =IF(AND(Y97="상승",Z98>W97),"성공",IF(AND(Y97="하락",Z98<W97),"성공",IF(AND(Y97="상승",Z98=W97),"동일가",IF(AND(Y97="하락",Z98=W97),"동일가","실패")))) -> 성공 | AB98: =S98/H98-1 -> -0.6891774892
B99: 2024-03-04 | C99: 15:35:00 | D99: 6320 | E99: 1204 | F99: 10811 | G99: 1991 | H99: 4491 | I99: 361.25 | J99: 0.180765271 | K99: 5.706480305 | M99: 2024-03-04 | N99: 15:45:00 | O99: 12683 | P99: 1493 | Q99: 13403 | R99: 1401 | S99: 720 | T99: 361.4 | U99: 1.071761487 | V99: -7.826086957 | W99: 361.4 | Y99: =IF(H99>S99,"하락","상승") -> 하락 | Z99: 359.2 | AA99: =IF(AND(Y98="상승",Z99>W98),"성공",IF(AND(Y98="하락",Z99<W98),"성공",IF(AND(Y98="상승",Z99=W98),"동일가",IF(AND(Y98="하락",Z99=W98),"동일가","실패")))) -> 실패 | AB99: =S99/H99-1 -> -0.8396793587
B100: 2024-03-05 | C100: 15:35:00 | D100: 10511 | E100: 2142 | F100: 5315 | G100: 719 | H100: -5196 | I100: 357.5 | J100: 2.485115233 | K100: 3.651440618 | M100: 2024-03-05 | N100: 15:45:00 | O100: 12128 | P100: 1892 | Q100: 9883 | R100: 840 | S100: -2245 | T100: 357.65 | U100: 5.355328199 | V100: 2.134030418 | W100: 357.65 | Y100: =IF(H100>S100,"하락","상승") -> 상승 | Z100: 360.1 | AA100: =IF(AND(Y99="상승",Z100>W99),"성공",IF(AND(Y99="하락",Z100<W99),"성공",IF(AND(Y99="상승",Z100=W99),"동일가",IF(AND(Y99="하락",Z100=W99),"동일가","실패")))) -> 성공 | AB100: =S100/H100-1 -> -0.5679368745
B101: 2024-03-06 | C101: 15:35:00 | D101: 7174 | E101: 1266 | F101: 10925 | G101: 2001 | H101: 3751 | I101: 356.55 | J101: -0.2068965517 | K101: 5.103401361 | M101: 2024-03-06 | N101: 15:45:00 | O101: 8662 | P101: 1142 | Q101: 11128 | R101: 1669 | S101: 2466 | T101: 356.6 | U101: -0.9174731558 | V101: 4.679316888 | W101: 356.6 | Y101: =IF(H101>S101,"하락","상승") -> 하락 | Z101: 354.6 | AA101: =IF(AND(Y100="상승",Z101>W100),"성공",IF(AND(Y100="하락",Z101<W100),"성공",IF(AND(Y100="상승",Z101=W100),"동일가",IF(AND(Y100="하락",Z101=W100),"동일가","실패")))) -> 실패 | AB101: =S101/H101-1 -> -0.3425753132
B102: 2024-03-07 | C102: 15:35:00 | D102: 11047 | E102: 1750 | F102: 9874 | G102: 1529 | H102: -1173 | I102: 357.05 | J102: 0.1452441372 | K102: 5.307692308 | M102: 2024-03-07 | N102: 15:45:00 | O102: 10020 | P102: 1490 | Q102: 8966 | R102: 1243 | S102: -1054 | T102: 357.1 | U102: 0.488361671 | V102: 4.267206478 | W102: 357.1 | Y102: =IF(H102>S102,"하락","상승") -> 상승 | Z102: 358.3 | AA102: =IF(AND(Y101="상승",Z102>W101),"성공",IF(AND(Y101="하락",Z102<W101),"성공",IF(AND(Y101="상승",Z102=W101),"동일가",IF(AND(Y101="하락",Z102=W101),"동일가","실패")))) -> 실패 | AB102: =S102/H102-1 -> -0.1014492754
B103: 2024-03-08 | C103: 15:35:00 | D103: 9198 | E103: 1374 | F103: 11423 | G103: 1914 | H103: 2225 | I103: 362.15 | J103: -0.7261935725 | K103: 4.12037037 | M103: 2024-03-08 | N103: 15:45:00 | O103: 12006 | P103: 1420 | Q103: 13344 | R103: 1669 | S103: 1338 | T103: 362.15 | U103: -0.4597228669 | V103: 5.373493976 | W103: 362.15 | Y103: =IF(H103>S103,"하락","상승") -> 하락 | Z103: 360.55 | AA103: =IF(AND(Y102="상승",Z103>W102),"성공",IF(AND(Y102="하락",Z103<W102),"성공",IF(AND(Y102="상승",Z103=W102),"동일가",IF(AND(Y102="하락",Z103=W102),"동일가","실패")))) -> 성공 | AB103: =S103/H103-1 -> -0.3986516854
B104: 2024-03-11 | C104: 15:35:00 | D104: 12359 | E104: 1687 | F104: 9621 | G104: 1563 | H104: -2738 | I104: 358.95 | J104: -1.170552276 | K104: 22.08064516 | M104: 2024-03-11 | N104: 15:45:00 | O104: 10678 | P104: 1102 | Q104: 10287 | R104: 1207 | S104: -391 | T104: 359.05 | U104: -1.166871411 | V104: -3.723809524 | W104: 359.05 | Y104: =IF(H104>S104,"하락","상승") -> 상승 | Z104: 359.9 | AA104: =IF(AND(Y103="상승",Z104>W103),"성공",IF(AND(Y103="하락",Z104<W103),"성공",IF(AND(Y103="상승",Z104=W103),"동일가",IF(AND(Y103="하락",Z104=W103),"동일가","실패")))) -> 성공 | AB104: =S104/H104-1 -> -0.8571950329
B105: 2024-03-12 | C105: 15:35:00 | D105: 8291 | E105: 1127 | F105: 16128 | G105: 2611 | H105: 7837 | I105: 361.65 | J105: -1.179755502 | K105: 5.280997305 | M105: 2024-03-12 | N105: 15:45:00 | O105: 8485 | P105: 918 | Q105: 12889 | R105: 1523 | S105: 4404 | T105: 361.7 | U105: -0.7800172232 | V105: 7.279338843 | W105: 361.7 | Y105: =IF(H105>S105,"하락","상승") -> 하락 | Z105: 360 | AA105: =IF(AND(Y104="상승",Z105>W104),"성공",IF(AND(Y104="하락",Z105<W104),"성공",IF(AND(Y104="상승",Z105=W104),"동일가",IF(AND(Y104="하락",Z105=W104),"동일가","실패")))) -> 성공 | AB105: =S105/H105-1 -> -0.4380502743
B106: 2024-03-13 | C106: 15:35:00 | D106: 11035 | E106: 1729 | F106: 11932 | G106: 1896 | H106: 897 | I106: 363.25 | J106: -0.08905296347 | K106: 5.371257485 | M106: 2024-03-13 | N106: 15:45:00 | O106: 10088 | P106: 1391 | Q106: 9338 | R106: 1092 | S106: -750 | T106: 363.55 | U106: 1.298945603 | V106: 2.508361204 | W106: 363.55 | Y106: =IF(H106>S106,"하락","상승") -> 하락 | Z106: 363.4 | AA106: =IF(AND(Y105="상승",Z106>W105),"성공",IF(AND(Y105="하락",Z106<W105),"성공",IF(AND(Y105="상승",Z106=W105),"동일가",IF(AND(Y105="하락",Z106=W105),"동일가","실패")))) -> 실패 | AB106: =S106/H106-1 -> -1.836120401
B107: 2024-03-14 | C107: 15:35:00 | D107: 3056 | E107: 620 | F107: 6187 | G107: 1031 | H107: 3131 | I107: 366.35 | J107: 1.071937674 | K107: 7.618004866 | M107: 2024-03-14 | N107: 15:45:00 | O107: 3056 | P107: 620 | Q107: 6187 | R107: 1031 | S107: 3131 | T107: 366.35 | U107: 1.071937674 | V107: 7.618004866 | W107: 366.35 | Y107: =IF(H107>S107,"하락","상승") -> 상승 | Z107: 363.55 | AA107: =IF(AND(Y106="상승",Z107>W106),"성공",IF(AND(Y106="하락",Z107<W106),"성공",IF(AND(Y106="상승",Z107=W106),"동일가",IF(AND(Y106="하락",Z107=W106),"동일가","실패")))) -> 동일가 | AB107: =S107/H107-1 -> 0
B108: 2024-03-15 | C108: 15:35:00 | D108: 13346 | E108: 2452 | F108: 5746 | G108: 825 | H108: -7600 | I108: 360.95 | J108: 1.521944733 | K108: 4.67117394 | M108: 2024-03-15 | N108: 15:45:00 | O108: 18826 | P108: 2147 | Q108: 13439 | R108: 987 | S108: -5387 | T108: 361.1 | U108: 4.8474939 | V108: 4.643965517 | W108: 361.1 | Y108: =IF(H108>S108,"하락","상승") -> 상승 | Z108: 365.7 | AA108: =IF(AND(Y107="상승",Z108>W107),"성공",IF(AND(Y107="하락",Z108<W107),"성공",IF(AND(Y107="상승",Z108=W107),"동일가",IF(AND(Y107="하락",Z108=W107),"동일가","실패")))) -> 실패 | AB108: =S108/H108-1 -> -0.2911842105
B109: 2024-03-18 | C109: 15:35:00 | D109: 9015 | E109: 1452 | F109: 14136 | G109: 2520 | H109: 5121 | I109: 362.9 | J109: -0.5991538764 | K109: 4.79494382 | M109: 2024-03-18 | N109: 15:45:00 | O109: 14162 | P109: 1371 | Q109: 15523 | R109: 1655 | S109: 1361 | T109: 362.95 | U109: -0.950230167 | V109: 4.792253521 | W109: 362.95 | Y109: =IF(H109>S109,"하락","상승") -> 하락 | Z109: 361.1 | AA109: =IF(AND(Y108="상승",Z109>W108),"성공",IF(AND(Y108="하락",Z109<W108),"성공",IF(AND(Y108="상승",Z109=W108),"동일가",IF(AND(Y108="하락",Z109=W108),"동일가","실패")))) -> 동일가 | AB109: =S109/H109-1 -> -0.7342315954
B110: 2024-03-19 | C110: 15:35:00 | D110: 12791 | E110: 2239 | F110: 9247 | G110: 1724 | H110: -3544 | I110: 358.95 | J110: -0.3491291273 | K110: 6.881553398 | M110: 2024-03-19 | N110: 15:45:00 | O110: 13413 | P110: 1694 | Q110: 11339 | R110: 1449 | S110: -2074 | T110: 358.95 | U110: -0.09254886528 | V110: 8.465306122 | W110: 358.95 | Y110: =IF(H110>S110,"하락","상승") -> 상승 | Z110: 361 | AA110: =IF(AND(Y109="상승",Z110>W109),"성공",IF(AND(Y109="하락",Z110<W109),"성공",IF(AND(Y109="상승",Z110=W109),"동일가",IF(AND(Y109="하락",Z110=W109),"동일가","실패")))) -> 성공 | AB110: =S110/H110-1 -> -0.414785553
B111: 2024-03-20 | C111: 15:35:00 | D111: 8701 | E111: 1560 | F111: 18809 | G111: 3437 | H111: 10108 | I111: 364.95 | J111: -0.1050590109 | K111: 5.385189132 | M111: 2024-03-20 | N111: 15:45:00 | O111: 11751 | P111: 1459 | Q111: 15896 | R111: 1968 | S111: 4145 | T111: 365.05 | U111: 0.02308909655 | V111: 8.143418468 | W111: 365.05 | Y111: =IF(H111>S111,"하락","상승") -> 하락 | Z111: 361 | AA111: =IF(AND(Y110="상승",Z111>W110),"성공",IF(AND(Y110="하락",Z111<W110),"성공",IF(AND(Y110="상승",Z111=W110),"동일가",IF(AND(Y110="하락",Z111=W110),"동일가","실패")))) -> 성공 | AB111: =S111/H111-1 -> -0.5899287693
B112: 2024-03-21 | C112: 15:35:00 | D112: 8818 | E112: 1231 | F112: 27511 | G112: 4035 | H112: 18693 | I112: 375.25 | J112: -0.345190187 | K112: 6.666547789 | M112: 2024-03-21 | N112: 15:45:00 | O112: 14360 | P112: 1231 | Q112: 21833 | R112: 1874 | S112: 1874 | T112: 375.45 | U112: 0.01184839876 | V112: 11.69984448 | W112: 375.45 | Y112: =IF(H112>S112,"하락","상승") -> 하락 | Z112: 371.7 | AA112: =IF(AND(Y111="상승",Z112>W111),"성공",IF(AND(Y111="하락",Z112<W111),"성공",IF(AND(Y111="상승",Z112=W111),"동일가",IF(AND(Y111="하락",Z112=W111),"동일가","실패")))) -> 실패 | AB112: =S112/H112-1 -> -0.899748569
B113: 2024-03-22 | C113: 15:35:00 | D113: 11667 | E113: 1995 | F113: 12267 | G113: 1787 | H113: 600 | I113: 373.45 | J113: 1.016457203 | K113: -2.884615385 | M113: 2024-03-22 | N113: 15:45:00 | O113: 15341 | P113: 1401 | Q113: 14657 | R113: 1324 | S113: -684 | T113: 373.4 | U113: 0.120206003 | V113: 8.883116883 | W113: 373.4 | Y113: =IF(H113>S113,"하락","상승") -> 하락 | Z113: 373.95 | AA113: =IF(AND(Y112="상승",Z113>W112),"성공",IF(AND(Y112="하락",Z113<W112),"성공",IF(AND(Y112="상승",Z113=W112),"동일가",IF(AND(Y112="하락",Z113=W112),"동일가","실패")))) -> 성공 | AB113: =S113/H113-1 -> -2.14
B114: 2024-03-25 | C114: 15:35:00 | D114: 13192 | E114: 2369 | F114: 12090 | G114: 1758 | H114: -1102 | I114: 372.45 | J114: 1.308538762 | K114: 1.803600655 | M114: 2024-03-25 | N114: 15:45:00 | O114: 12096 | P114: 1583 | Q114: 11859 | R114: 1246 | S114: -237 | T114: 372.6 | U114: 1.876468882 | V114: 0.703264095 | W114: 372.6 | Y114: =IF(H114>S114,"하락","상승") -> 상승 | Z114: 373.8 | AA114: =IF(AND(Y113="상승",Z114>W113),"성공",IF(AND(Y113="하락",Z114<W113),"성공",IF(AND(Y113="상승",Z114=W113),"동일가",IF(AND(Y113="하락",Z114=W113),"동일가","실패")))) -> 실패 | AB114: =S114/H114-1 -> -0.7849364791
B115: 2024-03-26 | C115: 15:35:00 | D115: 10114 | E115: 1964 | F115: 14094 | G115: 2260 | H115: 3980 | I115: 376.2 | J115: 1.086588685 | K115: 13.44594595 | M115: 2024-03-26 | N115: 15:45:00 | O115: 11643 | P115: 1453 | Q115: 13108 | R115: 1465 | S115: 1465 | T115: 376 | U115: 0.9343638794 | V115: 122.0833333 | W115: 376 | Y115: =IF(H115>S115,"하락","상승") -> 하락 | Z115: 375.05 | AA115: =IF(AND(Y114="상승",Z115>W114),"성공",IF(AND(Y114="하락",Z115<W114),"성공",IF(AND(Y114="상승",Z115=W114),"동일가",IF(AND(Y114="하락",Z115=W114),"동일가","실패")))) -> 성공 | AB115: =S115/H115-1 -> -0.6319095477
B116: 2024-03-27 | C116: 15:35:00 | D116: 10207 | E116: 1822 | F116: 17113 | G116: 2756 | H116: 6906 | I116: 376.25 | J116: 0.6072757731 | K116: 7.394004283 | M116: 2024-03-27 | N116: 15:45:00 | O116: 11766 | P116: 1441 | Q116: 13320 | R116: 1551 | S116: 1554 | T116: 376.3 | U116: 0.4228446558 | V116: 14.12727273 | W116: 376.3 | Y116: =IF(H116>S116,"하락","상승") -> 하락 | Z116: 375.3 | AA116: =IF(AND(Y115="상승",Z116>W115),"성공",IF(AND(Y115="하락",Z116<W115),"성공",IF(AND(Y115="상승",Z116=W115),"동일가",IF(AND(Y115="하락",Z116=W115),"동일가","실패")))) -> 성공 | AB116: =S116/H116-1 -> -0.7749782798
B117: 2024-03-28 | C117: 15:35:00 | D117: 9465 | E117: 1661 | F117: 9153 | G117: 1601 | H117: -312 | I117: 375.65 | J117: 0.01867736939 | K117: 5.2 | M117: 2024-03-28 | N117: 15:45:00 | O117: 9729 | P117: 1343 | Q117: 10350 | R117: 1412 | S117: 621 | T117: 375.7 | U117: 0.08579899131 | V117: 9 | W117: 375.7 | Y117: =IF(H117>S117,"하락","상승") -> 상승 | Z117: 376.75 | AA117: =IF(AND(Y116="상승",Z117>W116),"성공",IF(AND(Y116="하락",Z117<W116),"성공",IF(AND(Y116="상승",Z117=W116),"동일가",IF(AND(Y116="하락",Z117=W116),"동일가","실패")))) -> 실패 | AB117: =S117/H117-1 -> -2.990384615
B118: 2024-03-29 | C118: 15:35:00 | D118: 9237 | E118: 1596 | F118: 11545 | G118: 1862 | H118: 2308 | I118: 377.35 | J118: 0.4127282492 | K118: 8.676691729 | M118: 2024-03-29 | N118: 15:45:00 | O118: 9502 | P118: 1250 | Q118: 10350 | R118: 1299 | S118: 848 | T118: 376.95 | U118: 0.3660674365 | V118: 17.30612245 | W118: 376.95 | Y118: =IF(H118>S118,"하락","상승") -> 하락 | Z118: 376.95 | AA118: =IF(AND(Y117="상승",Z118>W117),"성공",IF(AND(Y117="하락",Z118<W117),"성공",IF(AND(Y117="상승",Z118=W117),"동일가",IF(AND(Y117="하락",Z118=W117),"동일가","실패")))) -> 성공 | AB118: =S118/H118-1 -> -0.6325823224
B119: 2024-04-01 | C119: 15:35:00 | D119: 13924 | E119: 2619 | F119: 11927 | G119: 1608 | H119: -1997 | I119: 377.05 | J119: 2.100755529 | K119: 1.975272008 | M119: 2024-04-01 | N119: 15:45:00 | O119: 10738 | P119: 1727 | Q119: 8769 | R119: 945 | S119: -1969 | T119: 377 | U119: 3.061646492 | V119: 2.517902813 | W119: 377 | Y119: =IF(H119>S119,"하락","상승") -> 상승 | Z119: 379.95 | AA119: =IF(AND(Y118="상승",Z119>W118),"성공",IF(AND(Y118="하락",Z119<W118),"성공",IF(AND(Y118="상승",Z119=W118),"동일가",IF(AND(Y118="하락",Z119=W118),"동일가","실패")))) -> 실패 | AB119: =S119/H119-1 -> -0.01402103155
B120: 2024-04-02 | C120: 15:35:00 | D120: 9727 | E120: 1881 | F120: 14658 | G120: 2443 | H120: 4931 | I120: 378.5 | J120: 0.8288144604 | K120: 8.774021352 | M120: 2024-04-02 | N120: 15:45:00 | O120: 10094 | P120: 1389 | Q120: 12177 | R120: 1549 | S120: 2083 | T120: 378.55 | U120: 0.5941021426 | V120: 13.01875 | W120: 378.55 | Y120: =IF(H120>S120,"하락","상승") -> 하락 | Z120: 375.4 | AA120: =IF(AND(Y119="상승",Z120>W119),"성공",IF(AND(Y119="하락",Z120<W119),"성공",IF(AND(Y119="상승",Z120=W119),"동일가",IF(AND(Y119="하락",Z120=W119),"동일가","실패")))) -> 실패 | AB120: =S120/H120-1 -> -0.5775704725
B121: 2024-04-03 | C121: 15:35:00 | D121: 16312 | E121: 3053 | F121: 9128 | G121: 1376 | H121: -7184 | I121: 372.6 | J121: 1.290779561 | K121: 4.283840191 | M121: 2024-04-03 | N121: 15:45:00 | O121: 17526 | P121: 2071 | Q121: 13691 | R121: 1144 | S121: -3835 | T121: 373.05 | U121: 3.505078878 | V121: 4.137001079 | W121: 373.05 | Y121: =IF(H121>S121,"하락","상승") -> 상승 | Z121: 376.3 | AA121: =IF(AND(Y120="상승",Z121>W120),"성공",IF(AND(Y120="하락",Z121<W120),"성공",IF(AND(Y120="상승",Z121=W120),"동일가",IF(AND(Y120="하락",Z121=W120),"동일가","실패")))) -> 성공 | AB121: =S121/H121-1 -> -0.466174833
B122: 2024-04-04 | C122: 15:35:00 | D122: 8069 | E122: 1238 | F122: 12851 | G122: 2435 | H122: 4782 | I122: 378.35 | J122: -1.240152528 | K122: 3.994987469 | M122: 2024-04-04 | N122: 15:45:00 | O122: 12335 | P122: 1076 | Q122: 14467 | R122: 1496 | S122: 2132 | T122: 378.25 | U122: -1.793300101 | V122: 5.076190476 | W122: 378.25 | Y122: =IF(H122>S122,"하락","상승") -> 하락 | Z122: 376.25 | AA122: =IF(AND(Y121="상승",Z122>W121),"성공",IF(AND(Y121="하락",Z122<W121),"성공",IF(AND(Y121="상승",Z122=W121),"동일가",IF(AND(Y121="하락",Z122=W121),"동일가","실패")))) -> 성공 | AB122: =S122/H122-1 -> -0.5541614387
B123: 2024-04-05 | C123: 15:35:00 | D123: 13371 | E123: 2756 | F123: 11809 | G123: 2221 | H123: -1562 | I123: 373.75 | J123: 0.4653778192 | K123: 2.919626168 | M123: 2024-04-05 | N123: 15:45:00 | O123: 14772 | P123: 1567 | Q123: 15422 | R123: 1658 | S123: 650 | T123: 373.75 | U123: -0.1253622859 | V123: 7.142857143 | W123: 373.75 | Y123: =IF(H123>S123,"하락","상승") -> 상승 | Z123: 375 | AA123: =IF(AND(Y122="상승",Z123>W122),"성공",IF(AND(Y122="하락",Z123<W122),"성공",IF(AND(Y122="상승",Z123=W122),"동일가",IF(AND(Y122="하락",Z123=W122),"동일가","실패")))) -> 성공 | AB123: =S123/H123-1 -> -1.416133163
B124: 2024-04-08 | C124: 15:35:00 | D124: 12349 | E124: 2215 | F124: 10719 | G124: 1923 | H124: -1630 | I124: 375.25 | J124: -0.001066336107 | K124: 5.582191781 | M124: 2024-04-08 | N124: 15:45:00 | O124: 10951 | P124: 1512 | Q124: 10577 | R124: 1412 | S124: -374 | T124: 375.2 | U124: 0.2480683334 | V124: 3.74 | W124: 375.2 | Y124: =IF(H124>S124,"하락","상승") -> 상승 | Z124: 376 | AA124: =IF(AND(Y123="상승",Z124>W123),"성공",IF(AND(Y123="하락",Z124<W123),"성공",IF(AND(Y123="상승",Z124=W123),"동일가",IF(AND(Y123="하락",Z124=W123),"동일가","실패")))) -> 성공 | AB124: =S124/H124-1 -> -0.7705521472
B125: ='1. 매수매도 총잔량'!$A$3 -> 2024-04-08 | C125: ='1. 매수매도 총잔량'!$A$424 -> 15:35:00 | D125: ='1. 매수매도 총잔량'!$B$424 -> 12349 | E125: ='1. 매수매도 총잔량'!$C$424 -> 2215 | F125: ='1. 매수매도 총잔량'!$D$424 -> 10719 | G125: ='1. 매수매도 총잔량'!$E$424 -> 1923 | H125: ='1. 매수매도 총잔량'!$F$424 -> -1630 | I125: ='1. 매수매도 총잔량'!$G$425 -> 375.25 | J125: ='1. 매수매도 총잔량'!$H$424 -> -0.001066336107 | K125: ='1. 매수매도 총잔량'!$I$424 -> 5.582191781 | M125: ='1. 매수매도 총잔량'!$A$3 -> 2024-04-08 | N125: ='1. 매수매도 총잔량'!$A$434 -> 15:45:00 | O125: ='1. 매수매도 총잔량'!$B$434 -> 10951 | P125: ='1. 매수매도 총잔량'!$C$434 -> 1512 | Q125: ='1. 매수매도 총잔량'!$D$434 -> 10577 | R125: ='1. 매수매도 총잔량'!$E$434 -> 1412 | S125: ='1. 매수매도 총잔량'!$F$434 -> -374 | T125: ='1. 매수매도 총잔량'!$G$435 -> 375.2 | U125: ='1. 매수매도 총잔량'!$H$434 -> 0.2480683334 | V125: ='1. 매수매도 총잔량'!$I$434 -> 3.74 | W125: =T125 -> 375.2 | Y125: =IF(H125>S125,"하락","상승") -> 상승 | Z125: =[1]!'101V6000.029' ->  | AA125: =IF(AND(Y124="상승",Z125>W124),"성공",IF(AND(Y124="하락",Z125<W124),"성공",IF(AND(Y124="상승",Z125=W124),"동일가",IF(AND(Y124="하락",Z125=W124),"동일가","실패")))) ->  | AB125: =S125/H125-1 -> -0.7705521472
B126: ='1. 매수매도 총잔량'!$A$3 -> 2024-04-08 | C126: ='1. 매수매도 총잔량'!$A$424 -> 15:35:00 | D126: ='1. 매수매도 총잔량'!$B$424 -> 12349 | E126: ='1. 매수매도 총잔량'!$C$424 -> 2215 | F126: ='1. 매수매도 총잔량'!$D$424 -> 10719 | G126: ='1. 매수매도 총잔량'!$E$424 -> 1923 | H126: ='1. 매수매도 총잔량'!$F$424 -> -1630 | I126: ='1. 매수매도 총잔량'!$G$425 -> 375.25 | J126: ='1. 매수매도 총잔량'!$H$424 -> -0.001066336107 | K126: ='1. 매수매도 총잔량'!$I$424 -> 5.582191781 | M126: ='1. 매수매도 총잔량'!$A$3 -> 2024-04-08 | N126: ='1. 매수매도 총잔량'!$A$434 -> 15:45:00 | O126: ='1. 매수매도 총잔량'!$B$434 -> 10951 | P126: ='1. 매수매도 총잔량'!$C$434 -> 1512 | Q126: ='1. 매수매도 총잔량'!$D$434 -> 10577 | R126: ='1. 매수매도 총잔량'!$E$434 -> 1412 | S126: ='1. 매수매도 총잔량'!$F$434 -> -374 | T126: ='1. 매수매도 총잔량'!$G$435 -> 375.2 | U126: ='1. 매수매도 총잔량'!$H$434 -> 0.2480683334 | V126: ='1. 매수매도 총잔량'!$I$434 -> 3.74 | W126: =T126 -> 375.2 | Y126: =IF(H126>S126,"하락","상승") -> 상승 | Z126: =[1]!'101V6000.029' ->  | AA126: =IF(AND(Y125="상승",Z126>W125),"성공",IF(AND(Y125="하락",Z126<W125),"성공",IF(AND(Y125="상승",Z126=W125),"동일가",IF(AND(Y125="하락",Z126=W125),"동일가","실패")))) ->  | AB126: =S126/H126-1 -> -0.7705521472
